Workbook

Sheet Dados_2.11.2019
A1: Data | B1: Hora | C1: Potencia ativa (kW)
A2: 2019-11-20 | B2: 23:23:17 | C2: 33
A3: 2019-11-20 | B3: 23:23:17 | C3: 36
A4: 2019-11-20 | B4: 23:23:17 | C4: 39
A5: 2019-11-20 | B5: 23:23:17 | C5: 6
A6: 2019-11-20 | B6: 23:23:18 | C6: 30
A7: 2019-11-20 | B7: 23:23:18 | C7: 32
A8: 2019-11-20 | B8: 23:23:18 | C8: 37
A9: 2019-11-20 | B9: 23:23:18 | C9: 13
A10: 2019-11-20 | B10: 23:23:18 | C10: 12
A11: 2019-11-20 | B11: 23:23:19 | C11: 14
A12: 2019-11-20 | B12: 23:23:19 | C12: 14
A13: 2019-11-20 | B13: 23:23:19 | C13: 34
A14: 2019-11-20 | B14: 23:23:19 | C14: 39
A15: 2019-11-20 | B15: 23:23:19 | C15: 16
A16: 2019-11-20 | B16: 23:23:20 | C16: 16
A17: 2019-11-20 | B17: 23:23:20 | C17: 21
A18: 2019-11-20 | B18: 23:23:20 | C18: 29
A19: 2019-11-20 | B19: 23:23:20 | C19: 21
A20: 2019-11-20 | B20: 23:23:20 | C20: 26
A21: 2019-11-20 | B21: 23:23:21 | C21: 7
A22: 2019-11-20 | B22: 23:23:21 | C22: 22
A23: 2019-11-20 | B23: 23:23:21 | C23: 39
A24: 2019-11-20 | B24: 23:23:21 | C24: 25
A25: 2019-11-20 | B25: 23:23:21 | C25: 25
A26: 2019-11-20 | B26: 23:23:22 | C26: 10
A27: 2019-11-20 | B27: 23:23:22 | C27: 30
A28: 2019-11-20 | B28: 23:23:22 | C28: 23
A29: 2019-11-20 | B29: 23:23:22 | C29: 14
A30: 2019-11-20 | B30: 23:23:22 | C30: 21
A31: 2019-11-20 | B31: 23:23:23 | C31: 38
A32: 2019-11-20 | B32: 23:23:23 | C32: 22
A33: 2019-11-20 | B33: 23:23:23 | C33: 37
A34: 2019-11-20 | B34: 23:23:23 | C34: 28
A35: 2019-11-20 | B35: 23:23:23 | C35: 15
A36: 2019-11-20 | B36: 23:23:24 | C36: 29
A37: 2019-11-20 | B37: 23:23:24 | C37: 15
A38: 2019-11-20 | B38: 23:23:24 | C38: 15
A39: 2019-11-20 | B39: 23:23:24 | C39: 7
A40: 2019-11-20 | B40: 23:23:24 | C40: 12
A41: 2019-11-20 | B41: 23:23:25 | C41: 39
A42: 2019-11-20 | B42: 23:23:25 | C42: 25
A43: 2019-11-20 | B43: 23:23:25 | C43: 37
A44: 2019-11-20 | B44: 23:23:25 | C44: 7
A45: 2019-11-20 | B45: 23:23:25 | C45: 32
A46: 2019-11-20 | B46: 23:23:26 | C46: 12
A47: 2019-11-20 | B47: 23:23:26 | C47: 16
A48: 2019-11-20 | B48: 23:23:26 | C48: 10
A49: 2019-11-20 | B49: 23:23:26 | C49: 23
A50: 2019-11-20 | B50: 23:23:26 | C50: 38
A51: 2019-11-20 | B51: 23:23:27 | C51: 6
A52: 2019-11-20 | B52: 23:23:27 | C52: 23
A53: 2019-11-20 | B53: 23:23:27 | C53: 35
A54: 2019-11-20 | B54: 23:23:27 | C54: 33
A55: 2019-11-20 | B55: 23:23:27 | C55: 17
A56: 2019-11-20 | B56: 23:23:28 | C56: 38
A57: 2019-11-20 | B57: 23:23:28 | C57: 39
A58: 2019-11-20 | B58: 23:23:28 | C58: 11
A59: 2019-11-20 | B59: 23:23:28 | C59: 28
A60: 2019-11-20 | B60: 23:23:28 | C60: 37
A61: 2019-11-20 | B61: 23:23:29 | C61: 28
A62: 2019-11-20 | B62: 23:23:29 | C62: 39
A63: 2019-11-20 | B63: 23:23:29 | C63: 17
A64: 2019-11-20 | B64: 23:23:29 | C64: 11
A65: 2019-11-20 | B65: 23:23:29 | C65: 21
A66: 2019-11-20 | B66: 23:23:30 | C66: 15
A67: 2019-11-20 | B67: 23:23:30 | C67: 33
A68: 2019-11-20 | B68: 23:23:30 | C68: 7
A69: 2019-11-20 | B69: 23:23:30 | C69: 21
A70: 2019-11-20 | B70: 23:23:30 | C70: 21
A71: 2019-11-20 | B71: 23:23:31 | C71: 37
A72: 2019-11-20 | B72: 23:23:31 | C72: 5
A73: 2019-11-20 | B73: 23:23:31 | C73: 31
A74: 2019-11-20 | B74: 23:23:31 | C74: 7
A75: 2019-11-20 | B75: 23:23:31 | C75: 8
A76: 2019-11-20 | B76: 23:23:32 | C76: 24
A77: 2019-11-20 | B77: 23:23:32 | C77: 9
A78: 2019-11-20 | B78: 23:23:32 | C78: 21
A79: 2019-11-20 | B79: 23:23:32 | C79: 21
A80: 2019-11-20 | B80: 23:23:32 | C80: 22
A81: 2019-11-20 | B81: 23:23:33 | C81: 24
A82: 2019-11-20 | B82: 23:23:33 | C82: 39
A83: 2019-11-20 | B83: 23:23:33 | C83: 29
A84: 2019-11-20 | B84: 23:23:33 | C84: 23
A85: 2019-11-20 | B85: 23:23:33 | C85: 34
A86: 2019-11-20 | B86: 23:23:34 | C86: 35
A87: 2019-11-20 | B87: 23:23:34 | C87: 33
A88: 2019-11-20 | B88: 23:23:34 | C88: 35
A89: 2019-11-20 | B89: 23:23:34 | C89: 17
A90: 2019-11-20 | B90: 23:23:34 | C90: 11
A91: 2019-11-20 | B91: 23:23:35 | C91: 29
A92: 2019-11-20 | B92: 23:23:35 | C92: 19
A93: 2019-11-20 | B93: 23:23:35 | C93: 24
A94: 2019-11-20 | B94: 23:23:35 | C94: 16
A95: 2019-11-20 | B95: 23:23:35 | C95: 5
A96: 2019-11-20 | B96: 23:23:36 | C96: 30
A97: 2019-11-20 | B97: 23:23:36 | C97: 10
A98: 2019-11-20 | B98: 23:23:36 | C98: 33
A99: 2019-11-20 | B99: 23:23:36 | C99: 11
A100: 2019-11-20 | B100: 23:23:36 | C100: 8
A101: 2019-11-20 | B101: 23:23:37 | C101: 18
A102: 2019-11-20 | B102: 23:23:37 | C102: 25
A103: 2019-11-20 | B103: 23:23:37 | C103: 8
A104: 2019-11-20 | B104: 23:23:37 | C104: 34
A105: 2019-11-20 | B105: 23:23:37 | C105: 34
A106: 2019-11-20 | B106: 23:23:38 | C106: 26
A107: 2019-11-20 | B107: 23:23:38 | C107: 34
A108: 2019-11-20 | B108: 23:23:38 | C108: 19
A109: 2019-11-20 | B109: 23:23:38 | C109: 13
A110: 2019-11-20 | B110: 23:23:38 | C110: 25
A111: 2019-11-20 | B111: 23:23:39 | C111: 10
A112: 2019-11-20 | B112: 23:23:39 | C112: 19
A113: 2019-11-20 | B113: 23:23:39 | C113: 9
A114: 2019-11-20 | B114: 23:23:39 | C114: 30
A115: 2019-11-20 | B115: 23:23:39 | C115: 18
A116: 2019-11-20 | B116: 23:23:40 | C116: 8
A117: 2019-11-20 | B117: 23:23:40 | C117: 7
A118: 2019-11-20 | B118: 23:23:40 | C118: 15
A119: 2019-11-20 | B119: 23:23:40 | C119: 10
A120: 2019-11-20 | B120: 23:23:40 | C120: 12
A121: 2019-11-20 | B121: 23:23:41 | C121: 6
A122: 2019-11-20 | B122: 23:23:41 | C122: 39
A123: 2019-11-20 | B123: 23:23:41 | C123: 31
A124: 2019-11-20 | B124: 23:23:41 | C124: 36
A125: 2019-11-20 | B125: 23:23:41 | C125: 17
A126: 2019-11-20 | B126: 23:23:42 | C126: 15
A127: 2019-11-20 | B127: 23:23:42 | C127: 28
A128: 2019-11-20 | B128: 23:23:42 | C128: 27
A129: 2019-11-20 | B129: 23:23:42 | C129: 9
A130: 2019-11-20 | B130: 23:23:42 | C130: 25
A131: 2019-11-20 | B131: 23:23:43 | C131: 28
A132: 2019-11-20 | B132: 23:23:43 | C132: 24
A133: 2019-11-20 | B133: 23:23:43 | C133: 29
A134: 2019-11-20 | B134: 23:23:43 | C134: 5
A135: 2019-11-20 | B135: 23:23:43 | C135: 20
A136: 2019-11-20 | B136: 23:23:44 | C136: 12
A137: 2019-11-20 | B137: 23:23:44 | C137: 14
A138: 2019-11-20 | B138: 23:23:44 | C138: 5
A139: 2019-11-20 | B139: 23:23:44 | C139: 14
A140: 2019-11-20 | B140: 23:23:44 | C140: 38
A141: 2019-11-20 | B141: 23:23:45 | C141: 39
A142: 2019-11-20 | B142: 23:23:45 | C142: 31
A143: 2019-11-20 | B143: 23:23:45 | C143: 25
A144: 2019-11-20 | B144: 23:23:45 | C144: 15
A145: 2019-11-20 | B145: 23:23:45 | C145: 24
A146: 2019-11-20 | B146: 23:23:46 | C146: 19
A147: 2019-11-20 | B147: 23:23:46 | C147: 36
A148: 2019-11-20 | B148: 23:23:46 | C148: 35
A149: 2019-11-20 | B149: 23:23:46 | C149: 21
A150: 2019-11-20 | B150: 23:23:46 | C150: 25
A151: 2019-11-20 | B151: 23:23:47 | C151: 6
A152: 2019-11-20 | B152: 23:23:47 | C152: 30
A153: 2019-11-20 | B153: 23:23:47 | C153: 9
A154: 2019-11-20 | B154: 23:23:47 | C154: 11
A155: 2019-11-20 | B155: 23:23:47 | C155: 7
A156: 2019-11-20 | B156: 23:23:48 | C156: 38
A157: 2019-11-20 | B157: 23:23:48 | C157: 15
A158: 2019-11-20 | B158: 23:23:48 | C158: 25
A159: 2019-11-20 | B159: 23:23:48 | C159: 37
A160: 2019-11-20 | B160: 23:23:48 | C160: 6
A161: 2019-11-20 | B161: 23:23:49 | C161: 21
A162: 2019-11-20 | B162: 23:23:49 | C162: 11
A163: 2019-11-20 | B163: 23:23:49 | C163: 11
A164: 2019-11-20 | B164: 23:23:49 | C164: 23
A165: 2019-11-20 | B165: 23:23:49 | C165: 13
A166: 2019-11-20 | B166: 23:23:50 | C166: 35
A167: 2019-11-20 | B167: 23:23:50 | C167: 9
A168: 2019-11-20 | B168: 23:23:50 | C168: 16
A169: 2019-11-20 | B169: 23:23:50 | C169: 5
A170: 2019-11-20 | B170: 23:23:50 | C170: 28
A171: 2019-11-20 | B171: 23:23:51 | C171: 10
A172: 2019-11-20 | B172: 23:23:51 | C172: 16
A173: 2019-11-20 | B173: 23:23:51 | C173: 13
A174: 2019-11-20 | B174: 23:23:51 | C174: 16
A175: 2019-11-20 | B175: 23:23:51 | C175: 17
A176: 2019-11-20 | B176: 23:23:52 | C176: 31
A177: 2019-11-20 | B177: 23:23:52 | C177: 20
A178: 2019-11-20 | B178: 23:23:52 | C178: 28
A179: 2019-11-20 | B179: 23:23:52 | C179: 39
A180: 2019-11-20 | B180: 23:23:52 | C180: 35
A181: 2019-11-20 | B181: 23:23:53 | C181: 16
A182: 2019-11-20 | B182: 23:23:53 | C182: 16
A183: 2019-11-20 | B183: 23:23:53 | C183: 23
A184: 2019-11-20 | B184: 23:23:53 | C184: 12
A185: 2019-11-20 | B185: 23:23:53 | C185: 6
A186: 2019-11-20 | B186: 23:23:54 | C186: 26
A187: 2019-11-20 | B187: 23:23:54 | C187: 10
A188: 2019-11-20 | B188: 23:23:54 | C188: 19
A189: 2019-11-20 | B189: 23:23:54 | C189: 27
A190: 2019-11-20 | B190: 23:23:54 | C190: 10
A191: 2019-11-20 | B191: 23:23:55 | C191: 7
A192: 2019-11-20 | B192: 23:23:55 | C192: 12
A193: 2019-11-20 | B193: 23:23:55 | C193: 27
A194: 2019-11-20 | B194: 23:23:55 | C194: 11
A195: 2019-11-20 | B195: 23:23:55 | C195: 20
A196: 2019-11-20 | B196: 23:23:56 | C196: 9
A197: 2019-11-20 | B197: 23:23:56 | C197: 23
A198: 2019-11-20 | B198: 23:23:56 | C198: 30
A199: 2019-11-20 | B199: 23:23:56 | C199: 29
A200: 2019-11-20 | B200: 23:23:56 | C200: 26
... 738 more rows

Sheet Resultados_2.11.2019
A1: Data | B1: Horário | C1: Potência ativa | D1: Produtividade | E1: Categoria hora | F1: Categoria minuto
A2: =Dados_2.11.2019!A2 -> 2019-11-20 | B2: =Dados_2.11.2019!B2 -> 23:23:17 | C2: =Dados_2.11.2019!C2 -> 33 | D2: =IF((0.0005*(C2^2)+0.0058*(C2)-0.055)<0,0,IF((0.0005*(C2^2)+0.0058*(C2)-0.055)>1,1,(0.0005*(C2^2)+0.0058*(C2)-0.055))) -> 0.6809 | E2: =HOUR(B2) -> 23 | F2: =MINUTE(B2) -> 23
A3: =Dados_2.11.2019!A3 -> 2019-11-20 | B3: =Dados_2.11.2019!B3 -> 23:23:17 | C3: =Dados_2.11.2019!C3 -> 36 | D3: =IF((0.0005*(C3^2)+0.0058*(C3)-0.055)<0,0,IF((0.0005*(C3^2)+0.0058*(C3)-0.055)>1,1,(0.0005*(C3^2)+0.0058*(C3)-0.055))) -> 0.8018 | E3: =HOUR(B3) -> 23 | F3: =MINUTE(B3) -> 23
A4: =Dados_2.11.2019!A4 -> 2019-11-20 | B4: =Dados_2.11.2019!B4 -> 23:23:17 | C4: =Dados_2.11.2019!C4 -> 39 | D4: 0.9317 | E4: 23 | F4: 23
A5: =Dados_2.11.2019!A5 -> 2019-11-20 | B5: =Dados_2.11.2019!B5 -> 23:23:17 | C5: =Dados_2.11.2019!C5 -> 6 | D5: 0 | E5: 23 | F5: 23
A6: =Dados_2.11.2019!A6 -> 2019-11-20 | B6: =Dados_2.11.2019!B6 -> 23:23:18 | C6: =Dados_2.11.2019!C6 -> 30 | D6: 0.569 | E6: 23 | F6: 23
A7: =Dados_2.11.2019!A7 -> 2019-11-20 | B7: =Dados_2.11.2019!B7 -> 23:23:18 | C7: =Dados_2.11.2019!C7 -> 32 | D7: 0.6426 | E7: 23 | F7: 23
A8: =Dados_2.11.2019!A8 -> 2019-11-20 | B8: =Dados_2.11.2019!B8 -> 23:23:18 | C8: =Dados_2.11.2019!C8 -> 37 | D8: 0.8441 | E8: 23 | F8: 23
A9: =Dados_2.11.2019!A9 -> 2019-11-20 | B9: =Dados_2.11.2019!B9 -> 23:23:18 | C9: =Dados_2.11.2019!C9 -> 13 | D9: 0.1049 | E9: 23 | F9: 23
A10: =Dados_2.11.2019!A10 -> 2019-11-20 | B10: =Dados_2.11.2019!B10 -> 23:23:18 | C10: =Dados_2.11.2019!C10 -> 12 | D10: 0.0866 | E10: 23 | F10: 23
A11: =Dados_2.11.2019!A11 -> 2019-11-20 | B11: =Dados_2.11.2019!B11 -> 23:23:19 | C11: =Dados_2.11.2019!C11 -> 14 | D11: 0.1242 | E11: 23 | F11: 23
A12: =Dados_2.11.2019!A12 -> 2019-11-20 | B12: =Dados_2.11.2019!B12 -> 23:23:19 | C12: =Dados_2.11.2019!C12 -> 14 | D12: 0.1242 | E12: 23 | F12: 23
A13: =Dados_2.11.2019!A13 -> 2019-11-20 | B13: =Dados_2.11.2019!B13 -> 23:23:19 | C13: =Dados_2.11.2019!C13 -> 34 | D13: 0.7202 | E13: 23 | F13: 23
A14: =Dados_2.11.2019!A14 -> 2019-11-20 | B14: =Dados_2.11.2019!B14 -> 23:23:19 | C14: =Dados_2.11.2019!C14 -> 39 | D14: 0.9317 | E14: 23 | F14: 23
A15: =Dados_2.11.2019!A15 -> 2019-11-20 | B15: =Dados_2.11.2019!B15 -> 23:23:19 | C15: =Dados_2.11.2019!C15 -> 16 | D15: 0.1658 | E15: 23 | F15: 23
A16: =Dados_2.11.2019!A16 -> 2019-11-20 | B16: =Dados_2.11.2019!B16 -> 23:23:20 | C16: =Dados_2.11.2019!C16 -> 16 | D16: 0.1658 | E16: 23 | F16: 23
A17: =Dados_2.11.2019!A17 -> 2019-11-20 | B17: =Dados_2.11.2019!B17 -> 23:23:20 | C17: =Dados_2.11.2019!C17 -> 21 | D17: 0.2873 | E17: 23 | F17: 23
A18: =Dados_2.11.2019!A18 -> 2019-11-20 | B18: =Dados_2.11.2019!B18 -> 23:23:20 | C18: =Dados_2.11.2019!C18 -> 29 | D18: 0.5337 | E18: 23 | F18: 23
A19: =Dados_2.11.2019!A19 -> 2019-11-20 | B19: =Dados_2.11.2019!B19 -> 23:23:20 | C19: =Dados_2.11.2019!C19 -> 21 | D19: 0.2873 | E19: 23 | F19: 23
A20: =Dados_2.11.2019!A20 -> 2019-11-20 | B20: =Dados_2.11.2019!B20 -> 23:23:20 | C20: =Dados_2.11.2019!C20 -> 26 | D20: 0.4338 | E20: 23 | F20: 23
A21: =Dados_2.11.2019!A21 -> 2019-11-20 | B21: =Dados_2.11.2019!B21 -> 23:23:21 | C21: =Dados_2.11.2019!C21 -> 7 | D21: 0.0101 | E21: 23 | F21: 23
A22: =Dados_2.11.2019!A22 -> 2019-11-20 | B22: =Dados_2.11.2019!B22 -> 23:23:21 | C22: =Dados_2.11.2019!C22 -> 22 | D22: 0.3146 | E22: 23 | F22: 23
A23: =Dados_2.11.2019!A23 -> 2019-11-20 | B23: =Dados_2.11.2019!B23 -> 23:23:21 | C23: =Dados_2.11.2019!C23 -> 39 | D23: 0.9317 | E23: 23 | F23: 23
A24: =Dados_2.11.2019!A24 -> 2019-11-20 | B24: =Dados_2.11.2019!B24 -> 23:23:21 | C24: =Dados_2.11.2019!C24 -> 25 | D24: 0.4025 | E24: 23 | F24: 23
A25: =Dados_2.11.2019!A25 -> 2019-11-20 | B25: =Dados_2.11.2019!B25 -> 23:23:21 | C25: =Dados_2.11.2019!C25 -> 25 | D25: 0.4025 | E25: 23 | F25: 23
A26: =Dados_2.11.2019!A26 -> 2019-11-20 | B26: =Dados_2.11.2019!B26 -> 23:23:22 | C26: =Dados_2.11.2019!C26 -> 10 | D26: 0.053 | E26: 23 | F26: 23
A27: =Dados_2.11.2019!A27 -> 2019-11-20 | B27: =Dados_2.11.2019!B27 -> 23:23:22 | C27: =Dados_2.11.2019!C27 -> 30 | D27: 0.569 | E27: 23 | F27: 23
A28: =Dados_2.11.2019!A28 -> 2019-11-20 | B28: =Dados_2.11.2019!B28 -> 23:23:22 | C28: =Dados_2.11.2019!C28 -> 23 | D28: 0.3429 | E28: 23 | F28: 23
A29: =Dados_2.11.2019!A29 -> 2019-11-20 | B29: =Dados_2.11.2019!B29 -> 23:23:22 | C29: =Dados_2.11.2019!C29 -> 14 | D29: 0.1242 | E29: 23 | F29: 23
A30: =Dados_2.11.2019!A30 -> 2019-11-20 | B30: =Dados_2.11.2019!B30 -> 23:23:22 | C30: =Dados_2.11.2019!C30 -> 21 | D30: 0.2873 | E30: 23 | F30: 23
A31: =Dados_2.11.2019!A31 -> 2019-11-20 | B31: =Dados_2.11.2019!B31 -> 23:23:23 | C31: =Dados_2.11.2019!C31 -> 38 | D31: 0.8874 | E31: 23 | F31: 23
A32: =Dados_2.11.2019!A32 -> 2019-11-20 | B32: =Dados_2.11.2019!B32 -> 23:23:23 | C32: =Dados_2.11.2019!C32 -> 22 | D32: =IF((0.0005*(C32^2)+0.0058*(C32)-0.055)<0,0,IF((0.0005*(C32^2)+0.0058*(C32)-0.055)>1,1,(0.0005*(C32^2)+0.0058*(C32)-0.055))) -> 0.3146 | E32: =HOUR(B32) -> 23 | F32: =MINUTE(B32) -> 23
A33: =Dados_2.11.2019!A33 -> 2019-11-20 | B33: =Dados_2.11.2019!B33 -> 23:23:23 | C33: =Dados_2.11.2019!C33 -> 37 | D33: 0.8441 | E33: 23 | F33: 23
A34: =Dados_2.11.2019!A34 -> 2019-11-20 | B34: =Dados_2.11.2019!B34 -> 23:23:23 | C34: =Dados_2.11.2019!C34 -> 28 | D34: 0.4994 | E34: 23 | F34: 23
A35: =Dados_2.11.2019!A35 -> 2019-11-20 | B35: =Dados_2.11.2019!B35 -> 23:23:23 | C35: =Dados_2.11.2019!C35 -> 15 | D35: 0.1445 | E35: 23 | F35: 23
A36: =Dados_2.11.2019!A36 -> 2019-11-20 | B36: =Dados_2.11.2019!B36 -> 23:23:24 | C36: =Dados_2.11.2019!C36 -> 29 | D36: 0.5337 | E36: 23 | F36: 23
A37: =Dados_2.11.2019!A37 -> 2019-11-20 | B37: =Dados_2.11.2019!B37 -> 23:23:24 | C37: =Dados_2.11.2019!C37 -> 15 | D37: 0.1445 | E37: 23 | F37: 23
A38: =Dados_2.11.2019!A38 -> 2019-11-20 | B38: =Dados_2.11.2019!B38 -> 23:23:24 | C38: =Dados_2.11.2019!C38 -> 15 | D38: 0.1445 | E38: 23 | F38: 23
A39: =Dados_2.11.2019!A39 -> 2019-11-20 | B39: =Dados_2.11.2019!B39 -> 23:23:24 | C39: =Dados_2.11.2019!C39 -> 7 | D39: 0.0101 | E39: 23 | F39: 23
A40: =Dados_2.11.2019!A40 -> 2019-11-20 | B40: =Dados_2.11.2019!B40 -> 23:23:24 | C40: =Dados_2.11.2019!C40 -> 12 | D40: 0.0866 | E40: 23 | F40: 23
A41: =Dados_2.11.2019!A41 -> 2019-11-20 | B41: =Dados_2.11.2019!B41 -> 23:23:25 | C41: =Dados_2.11.2019!C41 -> 39 | D41: 0.9317 | E41: 23 | F41: 23
A42: =Dados_2.11.2019!A42 -> 2019-11-20 | B42: =Dados_2.11.2019!B42 -> 23:23:25 | C42: =Dados_2.11.2019!C42 -> 25 | D42: 0.4025 | E42: 23 | F42: 23
A43: =Dados_2.11.2019!A43 -> 2019-11-20 | B43: =Dados_2.11.2019!B43 -> 23:23:25 | C43: =Dados_2.11.2019!C43 -> 37 | D43: 0.8441 | E43: 23 | F43: 23
A44: =Dados_2.11.2019!A44 -> 2019-11-20 | B44: =Dados_2.11.2019!B44 -> 23:23:25 | C44: =Dados_2.11.2019!C44 -> 7 | D44: 0.0101 | E44: 23 | F44: 23
A45: =Dados_2.11.2019!A45 -> 2019-11-20 | B45: =Dados_2.11.2019!B45 -> 23:23:25 | C45: =Dados_2.11.2019!C45 -> 32 | D45: 0.6426 | E45: 23 | F45: 23
A46: =Dados_2.11.2019!A46 -> 2019-11-20 | B46: =Dados_2.11.2019!B46 -> 23:23:26 | C46: =Dados_2.11.2019!C46 -> 12 | D46: 0.0866 | E46: 23 | F46: 23
A47: =Dados_2.11.2019!A47 -> 2019-11-20 | B47: =Dados_2.11.2019!B47 -> 23:23:26 | C47: =Dados_2.11.2019!C47 -> 16 | D47: 0.1658 | E47: 23 | F47: 23
A48: =Dados_2.11.2019!A48 -> 2019-11-20 | B48: =Dados_2.11.2019!B48 -> 23:23:26 | C48: =Dados_2.11.2019!C48 -> 10 | D48: 0.053 | E48: 23 | F48: 23
A49: =Dados_2.11.2019!A49 -> 2019-11-20 | B49: =Dados_2.11.2019!B49 -> 23:23:26 | C49: =Dados_2.11.2019!C49 -> 23 | D49: 0.3429 | E49: 23 | F49: 23
A50: =Dados_2.11.2019!A50 -> 2019-11-20 | B50: =Dados_2.11.2019!B50 -> 23:23:26 | C50: =Dados_2.11.2019!C50 -> 38 | D50: 0.8874 | E50: 23 | F50: 23
A51: =Dados_2.11.2019!A51 -> 2019-11-20 | B51: =Dados_2.11.2019!B51 -> 23:23:27 | C51: =Dados_2.11.2019!C51 -> 6 | D51: 0 | E51: 23 | F51: 23
A52: =Dados_2.11.2019!A52 -> 2019-11-20 | B52: =Dados_2.11.2019!B52 -> 23:23:27 | C52: =Dados_2.11.2019!C52 -> 23 | D52: 0.3429 | E52: 23 | F52: 23
A53: =Dados_2.11.2019!A53 -> 2019-11-20 | B53: =Dados_2.11.2019!B53 -> 23:23:27 | C53: =Dados_2.11.2019!C53 -> 35 | D53: 0.7605 | E53: 23 | F53: 23
A54: =Dados_2.11.2019!A54 -> 2019-11-20 | B54: =Dados_2.11.2019!B54 -> 23:23:27 | C54: =Dados_2.11.2019!C54 -> 33 | D54: 0.6809 | E54: 23 | F54: 23
A55: =Dados_2.11.2019!A55 -> 2019-11-20 | B55: =Dados_2.11.2019!B55 -> 23:23:27 | C55: =Dados_2.11.2019!C55 -> 17 | D55: 0.1881 | E55: 23 | F55: 23
A56: =Dados_2.11.2019!A56 -> 2019-11-20 | B56: =Dados_2.11.2019!B56 -> 23:23:28 | C56: =Dados_2.11.2019!C56 -> 38 | D56: 0.8874 | E56: 23 | F56: 23
A57: =Dados_2.11.2019!A57 -> 2019-11-20 | B57: =Dados_2.11.2019!B57 -> 23:23:28 | C57: =Dados_2.11.2019!C57 -> 39 | D57: 0.9317 | E57: 23 | F57: 23
A58: =Dados_2.11.2019!A58 -> 2019-11-20 | B58: =Dados_2.11.2019!B58 -> 23:23:28 | C58: =Dados_2.11.2019!C58 -> 11 | D58: 0.0693 | E58: 23 | F58: 23
A59: =Dados_2.11.2019!A59 -> 2019-11-20 | B59: =Dados_2.11.2019!B59 -> 23:23:28 | C59: =Dados_2.11.2019!C59 -> 28 | D59: 0.4994 | E59: 23 | F59: 23
A60: =Dados_2.11.2019!A60 -> 2019-11-20 | B60: =Dados_2.11.2019!B60 -> 23:23:28 | C60: =Dados_2.11.2019!C60 -> 37 | D60: 0.8441 | E60: 23 | F60: 23
A61: =Dados_2.11.2019!A61 -> 2019-11-20 | B61: =Dados_2.11.2019!B61 -> 23:23:29 | C61: =Dados_2.11.2019!C61 -> 28 | D61: 0.4994 | E61: 23 | F61: 23
A62: =Dados_2.11.2019!A62 -> 2019-11-20 | B62: =Dados_2.11.2019!B62 -> 23:23:29 | C62: =Dados_2.11.2019!C62 -> 39 | D62: 0.9317 | E62: 23 | F62: 23
A63: =Dados_2.11.2019!A63 -> 2019-11-20 | B63: =Dados_2.11.2019!B63 -> 23:23:29 | C63: =Dados_2.11.2019!C63 -> 17 | D63: 0.1881 | E63: 23 | F63: 23
A64: =Dados_2.11.2019!A64 -> 2019-11-20 | B64: =Dados_2.11.2019!B64 -> 23:23:29 | C64: =Dados_2.11.2019!C64 -> 11 | D64: 0.0693 | E64: 23 | F64: 23
A65: =Dados_2.11.2019!A65 -> 2019-11-20 | B65: =Dados_2.11.2019!B65 -> 23:23:29 | C65: =Dados_2.11.2019!C65 -> 21 | D65: 0.2873 | E65: 23 | F65: 23
A66: =Dados_2.11.2019!A66 -> 2019-11-20 | B66: =Dados_2.11.2019!B66 -> 23:23:30 | C66: =Dados_2.11.2019!C66 -> 15 | D66: 0.1445 | E66: 23 | F66: 23
A67: =Dados_2.11.2019!A67 -> 2019-11-20 | B67: =Dados_2.11.2019!B67 -> 23:23:30 | C67: =Dados_2.11.2019!C67 -> 33 | D67: 0.6809 | E67: 23 | F67: 23
A68: =Dados_2.11.2019!A68 -> 2019-11-20 | B68: =Dados_2.11.2019!B68 -> 23:23:30 | C68: =Dados_2.11.2019!C68 -> 7 | D68: 0.0101 | E68: 23 | F68: 23
A69: =Dados_2.11.2019!A69 -> 2019-11-20 | B69: =Dados_2.11.2019!B69 -> 23:23:30 | C69: =Dados_2.11.2019!C69 -> 21 | D69: 0.2873 | E69: 23 | F69: 23
A70: =Dados_2.11.2019!A70 -> 2019-11-20 | B70: =Dados_2.11.2019!B70 -> 23:23:30 | C70: =Dados_2.11.2019!C70 -> 21 | D70: 0.2873 | E70: 23 | F70: 23
A71: =Dados_2.11.2019!A71 -> 2019-11-20 | B71: =Dados_2.11.2019!B71 -> 23:23:31 | C71: =Dados_2.11.2019!C71 -> 37 | D71: 0.8441 | E71: 23 | F71: 23
A72: =Dados_2.11.2019!A72 -> 2019-11-20 | B72: =Dados_2.11.2019!B72 -> 23:23:31 | C72: =Dados_2.11.2019!C72 -> 5 | D72: 0 | E72: 23 | F72: 23
A73: =Dados_2.11.2019!A73 -> 2019-11-20 | B73: =Dados_2.11.2019!B73 -> 23:23:31 | C73: =Dados_2.11.2019!C73 -> 31 | D73: 0.6053 | E73: 23 | F73: 23
A74: =Dados_2.11.2019!A74 -> 2019-11-20 | B74: =Dados_2.11.2019!B74 -> 23:23:31 | C74: =Dados_2.11.2019!C74 -> 7 | D74: 0.0101 | E74: 23 | F74: 23
A75: =Dados_2.11.2019!A75 -> 2019-11-20 | B75: =Dados_2.11.2019!B75 -> 23:23:31 | C75: =Dados_2.11.2019!C75 -> 8 | D75: 0.0234 | E75: 23 | F75: 23
A76: =Dados_2.11.2019!A76 -> 2019-11-20 | B76: =Dados_2.11.2019!B76 -> 23:23:32 | C76: =Dados_2.11.2019!C76 -> 24 | D76: 0.3722 | E76: 23 | F76: 23
A77: =Dados_2.11.2019!A77 -> 2019-11-20 | B77: =Dados_2.11.2019!B77 -> 23:23:32 | C77: =Dados_2.11.2019!C77 -> 9 | D77: 0.0377 | E77: 23 | F77: 23
A78: =Dados_2.11.2019!A78 -> 2019-11-20 | B78: =Dados_2.11.2019!B78 -> 23:23:32 | C78: =Dados_2.11.2019!C78 -> 21 | D78: 0.2873 | E78: 23 | F78: 23
A79: =Dados_2.11.2019!A79 -> 2019-11-20 | B79: =Dados_2.11.2019!B79 -> 23:23:32 | C79: =Dados_2.11.2019!C79 -> 21 | D79: 0.2873 | E79: 23 | F79: 23
A80: =Dados_2.11.2019!A80 -> 2019-11-20 | B80: =Dados_2.11.2019!B80 -> 23:23:32 | C80: =Dados_2.11.2019!C80 -> 22 | D80: 0.3146 | E80: 23 | F80: 23
A81: =Dados_2.11.2019!A81 -> 2019-11-20 | B81: =Dados_2.11.2019!B81 -> 23:23:33 | C81: =Dados_2.11.2019!C81 -> 24 | D81: 0.3722 | E81: 23 | F81: 23
A82: =Dados_2.11.2019!A82 -> 2019-11-20 | B82: =Dados_2.11.2019!B82 -> 23:23:33 | C82: =Dados_2.11.2019!C82 -> 39 | D82: 0.9317 | E82: 23 | F82: 23
A83: =Dados_2.11.2019!A83 -> 2019-11-20 | B83: =Dados_2.11.2019!B83 -> 23:23:33 | C83: =Dados_2.11.2019!C83 -> 29 | D83: 0.5337 | E83: 23 | F83: 23
A84: =Dados_2.11.2019!A84 -> 2019-11-20 | B84: =Dados_2.11.2019!B84 -> 23:23:33 | C84: =Dados_2.11.2019!C84 -> 23 | D84: 0.3429 | E84: 23 | F84: 23
A85: =Dados_2.11.2019!A85 -> 2019-11-20 | B85: =Dados_2.11.2019!B85 -> 23:23:33 | C85: =Dados_2.11.2019!C85 -> 34 | D85: 0.7202 | E85: 23 | F85: 23
A86: =Dados_2.11.2019!A86 -> 2019-11-20 | B86: =Dados_2.11.2019!B86 -> 23:23:34 | C86: =Dados_2.11.2019!C86 -> 35 | D86: 0.7605 | E86: 23 | F86: 23
A87: =Dados_2.11.2019!A87 -> 2019-11-20 | B87: =Dados_2.11.2019!B87 -> 23:23:34 | C87: =Dados_2.11.2019!C87 -> 33 | D87: 0.6809 | E87: 23 | F87: 23
A88: =Dados_2.11.2019!A88 -> 2019-11-20 | B88: =Dados_2.11.2019!B88 -> 23:23:34 | C88: =Dados_2.11.2019!C88 -> 35 | D88: 0.7605 | E88: 23 | F88: 23
A89: =Dados_2.11.2019!A89 -> 2019-11-20 | B89: =Dados_2.11.2019!B89 -> 23:23:34 | C89: =Dados_2.11.2019!C89 -> 17 | D89: 0.1881 | E89: 23 | F89: 23
A90: =Dados_2.11.2019!A90 -> 2019-11-20 | B90: =Dados_2.11.2019!B90 -> 23:23:34 | C90: =Dados_2.11.2019!C90 -> 11 | D90: 0.0693 | E90: 23 | F90: 23
A91: =Dados_2.11.2019!A91 -> 2019-11-20 | B91: =Dados_2.11.2019!B91 -> 23:23:35 | C91: =Dados_2.11.2019!C91 -> 29 | D91: 0.5337 | E91: 23 | F91: 23
A92: =Dados_2.11.2019!A92 -> 2019-11-20 | B92: =Dados_2.11.2019!B92 -> 23:23:35 | C92: =Dados_2.11.2019!C92 -> 19 | D92: 0.2357 | E92: 23 | F92: 23
A93: =Dados_2.11.2019!A93 -> 2019-11-20 | B93: =Dados_2.11.2019!B93 -> 23:23:35 | C93: =Dados_2.11.2019!C93 -> 24 | D93: 0.3722 | E93: 23 | F93: 23
A94: =Dados_2.11.2019!A94 -> 2019-11-20 | B94: =Dados_2.11.2019!B94 -> 23:23:35 | C94: =Dados_2.11.2019!C94 -> 16 | D94: 0.1658 | E94: 23 | F94: 23
A95: =Dados_2.11.2019!A95 -> 2019-11-20 | B95: =Dados_2.11.2019!B95 -> 23:23:35 | C95: =Dados_2.11.2019!C95 -> 5 | D95: 0 | E95: 23 | F95: 23
A96: =Dados_2.11.2019!A96 -> 2019-11-20 | B96: =Dados_2.11.2019!B96 -> 23:23:36 | C96: =Dados_2.11.2019!C96 -> 30 | D96: =IF((0.0005*(C96^2)+0.0058*(C96)-0.055)<0,0,IF((0.0005*(C96^2)+0.0058*(C96)-0.055)>1,1,(0.0005*(C96^2)+0.0058*(C96)-0.055))) -> 0.569 | E96: =HOUR(B96) -> 23 | F96: =MINUTE(B96) -> 23
A97: =Dados_2.11.2019!A97 -> 2019-11-20 | B97: =Dados_2.11.2019!B97 -> 23:23:36 | C97: =Dados_2.11.2019!C97 -> 10 | D97: 0.053 | E97: 23 | F97: 23
A98: =Dados_2.11.2019!A98 -> 2019-11-20 | B98: =Dados_2.11.2019!B98 -> 23:23:36 | C98: =Dados_2.11.2019!C98 -> 33 | D98: 0.6809 | E98: 23 | F98: 23
A99: =Dados_2.11.2019!A99 -> 2019-11-20 | B99: =Dados_2.11.2019!B99 -> 23:23:36 | C99: =Dados_2.11.2019!C99 -> 11 | D99: 0.0693 | E99: 23 | F99: 23
A100: =Dados_2.11.2019!A100 -> 2019-11-20 | B100: =Dados_2.11.2019!B100 -> 23:23:36 | C100: =Dados_2.11.2019!C100 -> 8 | D100: 0.0234 | E100: 23 | F100: 23
A101: =Dados_2.11.2019!A101 -> 2019-11-20 | B101: =Dados_2.11.2019!B101 -> 23:23:37 | C101: =Dados_2.11.2019!C101 -> 18 | D101: 0.2114 | E101: 23 | F101: 23
A102: =Dados_2.11.2019!A102 -> 2019-11-20 | B102: =Dados_2.11.2019!B102 -> 23:23:37 | C102: =Dados_2.11.2019!C102 -> 25 | D102: 0.4025 | E102: 23 | F102: 23
A103: =Dados_2.11.2019!A103 -> 2019-11-20 | B103: =Dados_2.11.2019!B103 -> 23:23:37 | C103: =Dados_2.11.2019!C103 -> 8 | D103: 0.0234 | E103: 23 | F103: 23
A104: =Dados_2.11.2019!A104 -> 2019-11-20 | B104: =Dados_2.11.2019!B104 -> 23:23:37 | C104: =Dados_2.11.2019!C104 -> 34 | D104: 0.7202 | E104: 23 | F104: 23
A105: =Dados_2.11.2019!A105 -> 2019-11-20 | B105: =Dados_2.11.2019!B105 -> 23:23:37 | C105: =Dados_2.11.2019!C105 -> 34 | D105: 0.7202 | E105: 23 | F105: 23
A106: =Dados_2.11.2019!A106 -> 2019-11-20 | B106: =Dados_2.11.2019!B106 -> 23:23:38 | C106: =Dados_2.11.2019!C106 -> 26 | D106: 0.4338 | E106: 23 | F106: 23
A107: =Dados_2.11.2019!A107 -> 2019-11-20 | B107: =Dados_2.11.2019!B107 -> 23:23:38 | C107: =Dados_2.11.2019!C107 -> 34 | D107: 0.7202 | E107: 23 | F107: 23
A108: =Dados_2.11.2019!A108 -> 2019-11-20 | B108: =Dados_2.11.2019!B108 -> 23:23:38 | C108: =Dados_2.11.2019!C108 -> 19 | D108: 0.2357 | E108: 23 | F108: 23
A109: =Dados_2.11.2019!A109 -> 2019-11-20 | B109: =Dados_2.11.2019!B109 -> 23:23:38 | C109: =Dados_2.11.2019!C109 -> 13 | D109: 0.1049 | E109: 23 | F109: 23
A110: =Dados_2.11.2019!A110 -> 2019-11-20 | B110: =Dados_2.11.2019!B110 -> 23:23:38 | C110: =Dados_2.11.2019!C110 -> 25 | D110: 0.4025 | E110: 23 | F110: 23
A111: =Dados_2.11.2019!A111 -> 2019-11-20 | B111: =Dados_2.11.2019!B111 -> 23:23:39 | C111: =Dados_2.11.2019!C111 -> 10 | D111: 0.053 | E111: 23 | F111: 23
A112: =Dados_2.11.2019!A112 -> 2019-11-20 | B112: =Dados_2.11.2019!B112 -> 23:23:39 | C112: =Dados_2.11.2019!C112 -> 19 | D112: 0.2357 | E112: 23 | F112: 23
A113: =Dados_2.11.2019!A113 -> 2019-11-20 | B113: =Dados_2.11.2019!B113 -> 23:23:39 | C113: =Dados_2.11.2019!C113 -> 9 | D113: 0.0377 | E113: 23 | F113: 23
A114: =Dados_2.11.2019!A114 -> 2019-11-20 | B114: =Dados_2.11.2019!B114 -> 23:23:39 | C114: =Dados_2.11.2019!C114 -> 30 | D114: 0.569 | E114: 23 | F114: 23
A115: =Dados_2.11.2019!A115 -> 2019-11-20 | B115: =Dados_2.11.2019!B115 -> 23:23:39 | C115: =Dados_2.11.2019!C115 -> 18 | D115: 0.2114 | E115: 23 | F115: 23
A116: =Dados_2.11.2019!A116 -> 2019-11-20 | B116: =Dados_2.11.2019!B116 -> 23:23:40 | C116: =Dados_2.11.2019!C116 -> 8 | D116: 0.0234 | E116: 23 | F116: 23
A117: =Dados_2.11.2019!A117 -> 2019-11-20 | B117: =Dados_2.11.2019!B117 -> 23:23:40 | C117: =Dados_2.11.2019!C117 -> 7 | D117: 0.0101 | E117: 23 | F117: 23
A118: =Dados_2.11.2019!A118 -> 2019-11-20 | B118: =Dados_2.11.2019!B118 -> 23:23:40 | C118: =Dados_2.11.2019!C118 -> 15 | D118: 0.1445 | E118: 23 | F118: 23
A119: =Dados_2.11.2019!A119 -> 2019-11-20 | B119: =Dados_2.11.2019!B119 -> 23:23:40 | C119: =Dados_2.11.2019!C119 -> 10 | D119: 0.053 | E119: 23 | F119: 23
A120: =Dados_2.11.2019!A120 -> 2019-11-20 | B120: =Dados_2.11.2019!B120 -> 23:23:40 | C120: =Dados_2.11.2019!C120 -> 12 | D120: 0.0866 | E120: 23 | F120: 23
A121: =Dados_2.11.2019!A121 -> 2019-11-20 | B121: =Dados_2.11.2019!B121 -> 23:23:41 | C121: =Dados_2.11.2019!C121 -> 6 | D121: 0 | E121: 23 | F121: 23
A122: =Dados_2.11.2019!A122 -> 2019-11-20 | B122: =Dados_2.11.2019!B122 -> 23:23:41 | C122: =Dados_2.11.2019!C122 -> 39 | D122: 0.9317 | E122: 23 | F122: 23
A123: =Dados_2.11.2019!A123 -> 2019-11-20 | B123: =Dados_2.11.2019!B123 -> 23:23:41 | C123: =Dados_2.11.2019!C123 -> 31 | D123: 0.6053 | E123: 23 | F123: 23
A124: =Dados_2.11.2019!A124 -> 2019-11-20 | B124: =Dados_2.11.2019!B124 -> 23:23:41 | C124: =Dados_2.11.2019!C124 -> 36 | D124: 0.8018 | E124: 23 | F124: 23
A125: =Dados_2.11.2019!A125 -> 2019-11-20 | B125: =Dados_2.11.2019!B125 -> 23:23:41 | C125: =Dados_2.11.2019!C125 -> 17 | D125: 0.1881 | E125: 23 | F125: 23
A126: =Dados_2.11.2019!A126 -> 2019-11-20 | B126: =Dados_2.11.2019!B126 -> 23:23:42 | C126: =Dados_2.11.2019!C126 -> 15 | D126: 0.1445 | E126: 23 | F126: 23
A127: =Dados_2.11.2019!A127 -> 2019-11-20 | B127: =Dados_2.11.2019!B127 -> 23:23:42 | C127: =Dados_2.11.2019!C127 -> 28 | D127: 0.4994 | E127: 23 | F127: 23
A128: =Dados_2.11.2019!A128 -> 2019-11-20 | B128: =Dados_2.11.2019!B128 -> 23:23:42 | C128: =Dados_2.11.2019!C128 -> 27 | D128: 0.4661 | E128: 23 | F128: 23
A129: =Dados_2.11.2019!A129 -> 2019-11-20 | B129: =Dados_2.11.2019!B129 -> 23:23:42 | C129: =Dados_2.11.2019!C129 -> 9 | D129: 0.0377 | E129: 23 | F129: 23
A130: =Dados_2.11.2019!A130 -> 2019-11-20 | B130: =Dados_2.11.2019!B130 -> 23:23:42 | C130: =Dados_2.11.2019!C130 -> 25 | D130: 0.4025 | E130: 23 | F130: 23
A131: =Dados_2.11.2019!A131 -> 2019-11-20 | B131: =Dados_2.11.2019!B131 -> 23:23:43 | C131: =Dados_2.11.2019!C131 -> 28 | D131: 0.4994 | E131: 23 | F131: 23
A132: =Dados_2.11.2019!A132 -> 2019-11-20 | B132: =Dados_2.11.2019!B132 -> 23:23:43 | C132: =Dados_2.11.2019!C132 -> 24 | D132: 0.3722 | E132: 23 | F132: 23
A133: =Dados_2.11.2019!A133 -> 2019-11-20 | B133: =Dados_2.11.2019!B133 -> 23:23:43 | C133: =Dados_2.11.2019!C133 -> 29 | D133: 0.5337 | E133: 23 | F133: 23
A134: =Dados_2.11.2019!A134 -> 2019-11-20 | B134: =Dados_2.11.2019!B134 -> 23:23:43 | C134: =Dados_2.11.2019!C134 -> 5 | D134: 0 | E134: 23 | F134: 23
A135: =Dados_2.11.2019!A135 -> 2019-11-20 | B135: =Dados_2.11.2019!B135 -> 23:23:43 | C135: =Dados_2.11.2019!C135 -> 20 | D135: 0.261 | E135: 23 | F135: 23
A136: =Dados_2.11.2019!A136 -> 2019-11-20 | B136: =Dados_2.11.2019!B136 -> 23:23:44 | C136: =Dados_2.11.2019!C136 -> 12 | D136: 0.0866 | E136: 23 | F136: 23
A137: =Dados_2.11.2019!A137 -> 2019-11-20 | B137: =Dados_2.11.2019!B137 -> 23:23:44 | C137: =Dados_2.11.2019!C137 -> 14 | D137: 0.1242 | E137: 23 | F137: 23
A138: =Dados_2.11.2019!A138 -> 2019-11-20 | B138: =Dados_2.11.2019!B138 -> 23:23:44 | C138: =Dados_2.11.2019!C138 -> 5 | D138: 0 | E138: 23 | F138: 23
A139: =Dados_2.11.2019!A139 -> 2019-11-20 | B139: =Dados_2.11.2019!B139 -> 23:23:44 | C139: =Dados_2.11.2019!C139 -> 14 | D139: 0.1242 | E139: 23 | F139: 23
A140: =Dados_2.11.2019!A140 -> 2019-11-20 | B140: =Dados_2.11.2019!B140 -> 23:23:44 | C140: =Dados_2.11.2019!C140 -> 38 | D140: 0.8874 | E140: 23 | F140: 23
A141: =Dados_2.11.2019!A141 -> 2019-11-20 | B141: =Dados_2.11.2019!B141 -> 23:23:45 | C141: =Dados_2.11.2019!C141 -> 39 | D141: 0.9317 | E141: 23 | F141: 23
A142: =Dados_2.11.2019!A142 -> 2019-11-20 | B142: =Dados_2.11.2019!B142 -> 23:23:45 | C142: =Dados_2.11.2019!C142 -> 31 | D142: 0.6053 | E142: 23 | F142: 23
A143: =Dados_2.11.2019!A143 -> 2019-11-20 | B143: =Dados_2.11.2019!B143 -> 23:23:45 | C143: =Dados_2.11.2019!C143 -> 25 | D143: 0.4025 | E143: 23 | F143: 23
A144: =Dados_2.11.2019!A144 -> 2019-11-20 | B144: =Dados_2.11.2019!B144 -> 23:23:45 | C144: =Dados_2.11.2019!C144 -> 15 | D144: 0.1445 | E144: 23 | F144: 23
A145: =Dados_2.11.2019!A145 -> 2019-11-20 | B145: =Dados_2.11.2019!B145 -> 23:23:45 | C145: =Dados_2.11.2019!C145 -> 24 | D145: 0.3722 | E145: 23 | F145: 23
A146: =Dados_2.11.2019!A146 -> 2019-11-20 | B146: =Dados_2.11.2019!B146 -> 23:23:46 | C146: =Dados_2.11.2019!C146 -> 19 | D146: 0.2357 | E146: 23 | F146: 23
A147: =Dados_2.11.2019!A147 -> 2019-11-20 | B147: =Dados_2.11.2019!B147 -> 23:23:46 | C147: =Dados_2.11.2019!C147 -> 36 | D147: 0.8018 | E147: 23 | F147: 23
A148: =Dados_2.11.2019!A148 -> 2019-11-20 | B148: =Dados_2.11.2019!B148 -> 23:23:46 | C148: =Dados_2.11.2019!C148 -> 35 | D148: 0.7605 | E148: 23 | F148: 23
A149: =Dados_2.11.2019!A149 -> 2019-11-20 | B149: =Dados_2.11.2019!B149 -> 23:23:46 | C149: =Dados_2.11.2019!C149 -> 21 | D149: 0.2873 | E149: 23 | F149: 23
A150: =Dados_2.11.2019!A150 -> 2019-11-20 | B150: =Dados_2.11.2019!B150 -> 23:23:46 | C150: =Dados_2.11.2019!C150 -> 25 | D150: 0.4025 | E150: 23 | F150: 23
A151: =Dados_2.11.2019!A151 -> 2019-11-20 | B151: =Dados_2.11.2019!B151 -> 23:23:47 | C151: =Dados_2.11.2019!C151 -> 6 | D151: 0 | E151: 23 | F151: 23
A152: =Dados_2.11.2019!A152 -> 2019-11-20 | B152: =Dados_2.11.2019!B152 -> 23:23:47 | C152: =Dados_2.11.2019!C152 -> 30 | D152: 0.569 | E152: 23 | F152: 23
A153: =Dados_2.11.2019!A153 -> 2019-11-20 | B153: =Dados_2.11.2019!B153 -> 23:23:47 | C153: =Dados_2.11.2019!C153 -> 9 | D153: 0.0377 | E153: 23 | F153: 23
A154: =Dados_2.11.2019!A154 -> 2019-11-20 | B154: =Dados_2.11.2019!B154 -> 23:23:47 | C154: =Dados_2.11.2019!C154 -> 11 | D154: 0.0693 | E154: 23 | F154: 23
A155: =Dados_2.11.2019!A155 -> 2019-11-20 | B155: =Dados_2.11.2019!B155 -> 23:23:47 | C155: =Dados_2.11.2019!C155 -> 7 | D155: 0.0101 | E155: 23 | F155: 23
A156: =Dados_2.11.2019!A156 -> 2019-11-20 | B156: =Dados_2.11.2019!B156 -> 23:23:48 | C156: =Dados_2.11.2019!C156 -> 38 | D156: 0.8874 | E156: 23 | F156: 23
A157: =Dados_2.11.2019!A157 -> 2019-11-20 | B157: =Dados_2.11.2019!B157 -> 23:23:48 | C157: =Dados_2.11.2019!C157 -> 15 | D157: 0.1445 | E157: 23 | F157: 23
A158: =Dados_2.11.2019!A158 -> 2019-11-20 | B158: =Dados_2.11.2019!B158 -> 23:23:48 | C158: =Dados_2.11.2019!C158 -> 25 | D158: 0.4025 | E158: 23 | F158: 23
A159: =Dados_2.11.2019!A159 -> 2019-11-20 | B159: =Dados_2.11.2019!B159 -> 23:23:48 | C159: =Dados_2.11.2019!C159 -> 37 | D159: 0.8441 | E159: 23 | F159: 23
A160: =Dados_2.11.2019!A160 -> 2019-11-20 | B160: =Dados_2.11.2019!B160 -> 23:23:48 | C160: =Dados_2.11.2019!C160 -> 6 | D160: =IF((0.0005*(C160^2)+0.0058*(C160)-0.055)<0,0,IF((0.0005*(C160^2)+0.0058*(C160)-0.055)>1,1,(0.0005*(C160^2)+0.0058*(C160)-0.055))) -> 0 | E160: =HOUR(B160) -> 23 | F160: =MINUTE(B160) -> 23
A161: =Dados_2.11.2019!A161 -> 2019-11-20 | B161: =Dados_2.11.2019!B161 -> 23:23:49 | C161: =Dados_2.11.2019!C161 -> 21 | D161: 0.2873 | E161: 23 | F161: 23
A162: =Dados_2.11.2019!A162 -> 2019-11-20 | B162: =Dados_2.11.2019!B162 -> 23:23:49 | C162: =Dados_2.11.2019!C162 -> 11 | D162: 0.0693 | E162: 23 | F162: 23
A163: =Dados_2.11.2019!A163 -> 2019-11-20 | B163: =Dados_2.11.2019!B163 -> 23:23:49 | C163: =Dados_2.11.2019!C163 -> 11 | D163: 0.0693 | E163: 23 | F163: 23
A164: =Dados_2.11.2019!A164 -> 2019-11-20 | B164: =Dados_2.11.2019!B164 -> 23:23:49 | C164: =Dados_2.11.2019!C164 -> 23 | D164: 0.3429 | E164: 23 | F164: 23
A165: =Dados_2.11.2019!A165 -> 2019-11-20 | B165: =Dados_2.11.2019!B165 -> 23:23:49 | C165: =Dados_2.11.2019!C165 -> 13 | D165: 0.1049 | E165: 23 | F165: 23
A166: =Dados_2.11.2019!A166 -> 2019-11-20 | B166: =Dados_2.11.2019!B166 -> 23:23:50 | C166: =Dados_2.11.2019!C166 -> 35 | D166: 0.7605 | E166: 23 | F166: 23
A167: =Dados_2.11.2019!A167 -> 2019-11-20 | B167: =Dados_2.11.2019!B167 -> 23:23:50 | C167: =Dados_2.11.2019!C167 -> 9 | D167: 0.0377 | E167: 23 | F167: 23
A168: =Dados_2.11.2019!A168 -> 2019-11-20 | B168: =Dados_2.11.2019!B168 -> 23:23:50 | C168: =Dados_2.11.2019!C168 -> 16 | D168: 0.1658 | E168: 23 | F168: 23
A169: =Dados_2.11.2019!A169 -> 2019-11-20 | B169: =Dados_2.11.2019!B169 -> 23:23:50 | C169: =Dados_2.11.2019!C169 -> 5 | D169: 0 | E169: 23 | F169: 23
A170: =Dados_2.11.2019!A170 -> 2019-11-20 | B170: =Dados_2.11.2019!B170 -> 23:23:50 | C170: =Dados_2.11.2019!C170 -> 28 | D170: 0.4994 | E170: 23 | F170: 23
A171: =Dados_2.11.2019!A171 -> 2019-11-20 | B171: =Dados_2.11.2019!B171 -> 23:23:51 | C171: =Dados_2.11.2019!C171 -> 10 | D171: 0.053 | E171: 23 | F171: 23
A172: =Dados_2.11.2019!A172 -> 2019-11-20 | B172: =Dados_2.11.2019!B172 -> 23:23:51 | C172: =Dados_2.11.2019!C172 -> 16 | D172: 0.1658 | E172: 23 | F172: 23
A173: =Dados_2.11.2019!A173 -> 2019-11-20 | B173: =Dados_2.11.2019!B173 -> 23:23:51 | C173: =Dados_2.11.2019!C173 -> 13 | D173: 0.1049 | E173: 23 | F173: 23
A174: =Dados_2.11.2019!A174 -> 2019-11-20 | B174: =Dados_2.11.2019!B174 -> 23:23:51 | C174: =Dados_2.11.2019!C174 -> 16 | D174: 0.1658 | E174: 23 | F174: 23
A175: =Dados_2.11.2019!A175 -> 2019-11-20 | B175: =Dados_2.11.2019!B175 -> 23:23:51 | C175: =Dados_2.11.2019!C175 -> 17 | D175: 0.1881 | E175: 23 | F175: 23
A176: =Dados_2.11.2019!A176 -> 2019-11-20 | B176: =Dados_2.11.2019!B176 -> 23:23:52 | C176: =Dados_2.11.2019!C176 -> 31 | D176: 0.6053 | E176: 23 | F176: 23
A177: =Dados_2.11.2019!A177 -> 2019-11-20 | B177: =Dados_2.11.2019!B177 -> 23:23:52 | C177: =Dados_2.11.2019!C177 -> 20 | D177: 0.261 | E177: 23 | F177: 23
A178: =Dados_2.11.2019!A178 -> 2019-11-20 | B178: =Dados_2.11.2019!B178 -> 23:23:52 | C178: =Dados_2.11.2019!C178 -> 28 | D178: 0.4994 | E178: 23 | F178: 23
A179: =Dados_2.11.2019!A179 -> 2019-11-20 | B179: =Dados_2.11.2019!B179 -> 23:23:52 | C179: =Dados_2.11.2019!C179 -> 39 | D179: 0.9317 | E179: 23 | F179: 23
A180: =Dados_2.11.2019!A180 -> 2019-11-20 | B180: =Dados_2.11.2019!B180 -> 23:23:52 | C180: =Dados_2.11.2019!C180 -> 35 | D180: 0.7605 | E180: 23 | F180: 23
A181: =Dados_2.11.2019!A181 -> 2019-11-20 | B181: =Dados_2.11.2019!B181 -> 23:23:53 | C181: =Dados_2.11.2019!C181 -> 16 | D181: 0.1658 | E181: 23 | F181: 23
A182: =Dados_2.11.2019!A182 -> 2019-11-20 | B182: =Dados_2.11.2019!B182 -> 23:23:53 | C182: =Dados_2.11.2019!C182 -> 16 | D182: 0.1658 | E182: 23 | F182: 23
A183: =Dados_2.11.2019!A183 -> 2019-11-20 | B183: =Dados_2.11.2019!B183 -> 23:23:53 | C183: =Dados_2.11.2019!C183 -> 23 | D183: 0.3429 | E183: 23 | F183: 23
A184: =Dados_2.11.2019!A184 -> 2019-11-20 | B184: =Dados_2.11.2019!B184 -> 23:23:53 | C184: =Dados_2.11.2019!C184 -> 12 | D184: 0.0866 | E184: 23 | F184: 23
A185: =Dados_2.11.2019!A185 -> 2019-11-20 | B185: =Dados_2.11.2019!B185 -> 23:23:53 | C185: =Dados_2.11.2019!C185 -> 6 | D185: 0 | E185: 23 | F185: 23
A186: =Dados_2.11.2019!A186 -> 2019-11-20 | B186: =Dados_2.11.2019!B186 -> 23:23:54 | C186: =Dados_2.11.2019!C186 -> 26 | D186: 0.4338 | E186: 23 | F186: 23
A187: =Dados_2.11.2019!A187 -> 2019-11-20 | B187: =Dados_2.11.2019!B187 -> 23:23:54 | C187: =Dados_2.11.2019!C187 -> 10 | D187: 0.053 | E187: 23 | F187: 23
A188: =Dados_2.11.2019!A188 -> 2019-11-20 | B188: =Dados_2.11.2019!B188 -> 23:23:54 | C188: =Dados_2.11.2019!C188 -> 19 | D188: 0.2357 | E188: 23 | F188: 23
A189: =Dados_2.11.2019!A189 -> 2019-11-20 | B189: =Dados_2.11.2019!B189 -> 23:23:54 | C189: =Dados_2.11.2019!C189 -> 27 | D189: 0.4661 | E189: 23 | F189: 23
A190: =Dados_2.11.2019!A190 -> 2019-11-20 | B190: =Dados_2.11.2019!B190 -> 23:23:54 | C190: =Dados_2.11.2019!C190 -> 10 | D190: 0.053 | E190: 23 | F190: 23
A191: =Dados_2.11.2019!A191 -> 2019-11-20 | B191: =Dados_2.11.2019!B191 -> 23:23:55 | C191: =Dados_2.11.2019!C191 -> 7 | D191: 0.0101 | E191: 23 | F191: 23
A192: =Dados_2.11.2019!A192 -> 2019-11-20 | B192: =Dados_2.11.2019!B192 -> 23:23:55 | C192: =Dados_2.11.2019!C192 -> 12 | D192: 0.0866 | E192: 23 | F192: 23
A193: =Dados_2.11.2019!A193 -> 2019-11-20 | B193: =Dados_2.11.2019!B193 -> 23:23:55 | C193: =Dados_2.11.2019!C193 -> 27 | D193: 0.4661 | E193: 23 | F193: 23
A194: =Dados_2.11.2019!A194 -> 2019-11-20 | B194: =Dados_2.11.2019!B194 -> 23:23:55 | C194: =Dados_2.11.2019!C194 -> 11 | D194: 0.0693 | E194: 23 | F194: 23
A195: =Dados_2.11.2019!A195 -> 2019-11-20 | B195: =Dados_2.11.2019!B195 -> 23:23:55 | C195: =Dados_2.11.2019!C195 -> 20 | D195: 0.261 | E195: 23 | F195: 23
A196: =Dados_2.11.2019!A196 -> 2019-11-20 | B196: =Dados_2.11.2019!B196 -> 23:23:56 | C196: =Dados_2.11.2019!C196 -> 9 | D196: 0.0377 | E196: 23 | F196: 23
A197: =Dados_2.11.2019!A197 -> 2019-11-20 | B197: =Dados_2.11.2019!B197 -> 23:23:56 | C197: =Dados_2.11.2019!C197 -> 23 | D197: 0.3429 | E197: 23 | F197: 23
A198: =Dados_2.11.2019!A198 -> 2019-11-20 | B198: =Dados_2.11.2019!B198 -> 23:23:56 | C198: =Dados_2.11.2019!C198 -> 30 | D198: 0.569 | E198: 23 | F198: 23
A199: =Dados_2.11.2019!A199 -> 2019-11-20 | B199: =Dados_2.11.2019!B199 -> 23:23:56 | C199: =Dados_2.11.2019!C199 -> 29 | D199: 0.5337 | E199: 23 | F199: 23
A200: =Dados_2.11.2019!A200 -> 2019-11-20 | B200: =Dados_2.11.2019!B200 -> 23:23:56 | C200: =Dados_2.11.2019!C200 -> 26 | D200: 0.4338 | E200: 23 | F200: 23
... 1640 more rows

Sheet Configurações
B2: Dia | C2: =DAY(TODAY()) -> 22
B3: Mês | C3: =MONTH(TODAY()) -> 5
B4: Ano | C4: =YEAR(TODAY()) -> 2020
A276: 2019-11-20 | B276: 23:06:05 | C276: 36
A277: 2019-11-20 | B277: 23:06:05 | C277: 10
A278: 2019-11-20 | B278: 23:06:05 | C278: 22
A279: 2019-11-20 | B279: 23:06:05 | C279: 39
A280: 2019-11-20 | B280: 23:06:05 | C280: 15
A281: 2019-11-20 | B281: 23:06:05 | C281: 33
A282: 2019-11-20 | B282: 23:06:05 | C282: 20
A283: 2019-11-20 | B283: 23:06:05 | C283: 7
A284: 2019-11-20 | B284: 23:06:06 | C284: 39
A285: 2019-11-20 | B285: 23:06:06 | C285: 36
A286: 2019-11-20 | B286: 23:06:06 | C286: 14
A287: 2019-11-20 | B287: 23:06:06 | C287: 28
A288: 2019-11-20 | B288: 23:06:06 | C288: 34
A289: 2019-11-20 | B289: 23:06:07 | C289: 19
A290: 2019-11-20 | B290: 23:06:07 | C290: 21
A291: 2019-11-20 | B291: 23:06:07 | C291: 33
A292: 2019-11-20 | B292: 23:06:07 | C292: 18
A293: 2019-11-20 | B293: 23:06:07 | C293: 14
A294: 2019-11-20 | B294: 23:06:08 | C294: 38
A295: 2019-11-20 | B295: 23:06:08 | C295: 28
A3320: 2019-11-20 | B3320: 23:18:04 | C3320: 10
A3321: 2019-11-20 | B3321: 23:18:04 | C3321: 23
A3322: 2019-11-20 | B3322: 23:18:04 | C3322: 34
A3323: 2019-11-20 | B3323: 23:18:05 | C3323: 13
A3324: 2019-11-20 | B3324: 23:18:05 | C3324: 35
A3325: 2019-11-20 | B3325: 23:18:05 | C3325: 17
A3326: 2019-11-20 | B3326: 23:18:05 | C3326: 8
A3327: 2019-11-20 | B3327: 23:18:05 | C3327: 39
A3328: 2019-11-20 | B3328: 23:18:05 | C3328: 31
A3329: 2019-11-20 | B3329: 23:18:05 | C3329: 27
A3330: 2019-11-20 | B3330: 23:18:05 | C3330: 21
A3331: 2019-11-20 | B3331: 23:18:05 | C3331: 15
A3332: 2019-11-20 | B3332: 23:18:05 | C3332: 27
A3333: 2019-11-20 | B3333: 23:18:06 | C3333: 37
A3334: 2019-11-20 | B3334: 23:18:06 | C3334: 31
A3335: 2019-11-20 | B3335: 23:18:06 | C3335: 24
A3336: 2019-11-20 | B3336: 23:18:06 | C3336: 18
A3337: 2019-11-20 | B3337: 23:18:06 | C3337: 33

Sheet Dados
A1: Data | B1: Hora | C1: Potencia ativa (kW)

Sheet Resultados
A1: Data | B1: Horário | C1: Potência ativa | D1: Produtividade | E1: Categoria hora | F1: Categoria minuto
A2: =Dados!A2 -> 00:00:00 | B2: =Dados!B2 -> 00:00:00 | C2: =Dados!C2 -> 0 | D2: =IF((0.0005*(C2^2)+0.0058*(C2)-0.055)<0,0,IF((0.0005*(C2^2)+0.0058*(C2)-0.055)>1,1,(0.0005*(C2^2)+0.0058*(C2)-0.055))) -> 0 | E2: =HOUR(B2) -> 0 | F2: =MINUTE(B2) -> 0
A3: =Dados!A3 -> 00:00:00 | B3: =Dados!B3 -> 00:00:00 | C3: =Dados!C3 -> 0 | D3: =IF((0.0005*(C3^2)+0.0058*(C3)-0.055)<0,0,IF((0.0005*(C3^2)+0.0058*(C3)-0.055)>1,1,(0.0005*(C3^2)+0.0058*(C3)-0.055))) -> 0 | E3: =HOUR(B3) -> 0 | F3: =MINUTE(B3) -> 0
A4: =Dados!A4 -> 00:00:00 | B4: =Dados!B4 -> 00:00:00 | C4: =Dados!C4 -> 0 | D4: 0 | E4: 0 | F4: 0
A5: =Dados!A5 -> 00:00:00 | B5: =Dados!B5 -> 00:00:00 | C5: =Dados!C5 -> 0 | D5: 0 | E5: 0 | F5: 0
A6: =Dados!A6 -> 00:00:00 | B6: =Dados!B6 -> 00:00:00 | C6: =Dados!C6 -> 0 | D6: 0 | E6: 0 | F6: 0
A7: =Dados!A7 -> 00:00:00 | B7: =Dados!B7 -> 00:00:00 | C7: =Dados!C7 -> 0 | D7: 0 | E7: 0 | F7: 0
A8: =Dados!A8 -> 00:00:00 | B8: =Dados!B8 -> 00:00:00 | C8: =Dados!C8 -> 0 | D8: 0 | E8: 0 | F8: 0
A9: =Dados!A9 -> 00:00:00 | B9: =Dados!B9 -> 00:00:00 | C9: =Dados!C9 -> 0 | D9: 0 | E9: 0 | F9: 0
A10: =Dados!A10 -> 00:00:00 | B10: =Dados!B10 -> 00:00:00 | C10: =Dados!C10 -> 0 | D10: 0 | E10: 0 | F10: 0
A11: =Dados!A11 -> 00:00:00 | B11: =Dados!B11 -> 00:00:00 | C11: =Dados!C11 -> 0 | D11: 0 | E11: 0 | F11: 0
A12: =Dados!A12 -> 00:00:00 | B12: =Dados!B12 -> 00:00:00 | C12: =Dados!C12 -> 0 | D12: 0 | E12: 0 | F12: 0
A13: =Dados!A13 -> 00:00:00 | B13: =Dados!B13 -> 00:00:00 | C13: =Dados!C13 -> 0 | D13: 0 | E13: 0 | F13: 0
A14: =Dados!A14 -> 00:00:00 | B14: =Dados!B14 -> 00:00:00 | C14: =Dados!C14 -> 0 | D14: 0 | E14: 0 | F14: 0
A15: =Dados!A15 -> 00:00:00 | B15: =Dados!B15 -> 00:00:00 | C15: =Dados!C15 -> 0 | D15: 0 | E15: 0 | F15: 0
A16: =Dados!A16 -> 00:00:00 | B16: =Dados!B16 -> 00:00:00 | C16: =Dados!C16 -> 0 | D16: 0 | E16: 0 | F16: 0
A17: =Dados!A17 -> 00:00:00 | B17: =Dados!B17 -> 00:00:00 | C17: =Dados!C17 -> 0 | D17: 0 | E17: 0 | F17: 0
A18: =Dados!A18 -> 00:00:00 | B18: =Dados!B18 -> 00:00:00 | C18: =Dados!C18 -> 0 | D18: 0 | E18: 0 | F18: 0
A19: =Dados!A19 -> 00:00:00 | B19: =Dados!B19 -> 00:00:00 | C19: =Dados!C19 -> 0 | D19: 0 | E19: 0 | F19: 0
A20: =Dados!A20 -> 00:00:00 | B20: =Dados!B20 -> 00:00:00 | C20: =Dados!C20 -> 0 | D20: 0 | E20: 0 | F20: 0
A21: =Dados!A21 -> 00:00:00 | B21: =Dados!B21 -> 00:00:00 | C21: =Dados!C21 -> 0 | D21: 0 | E21: 0 | F21: 0
A22: =Dados!A22 -> 00:00:00 | B22: =Dados!B22 -> 00:00:00 | C22: =Dados!C22 -> 0 | D22: 0 | E22: 0 | F22: 0
A23: =Dados!A23 -> 00:00:00 | B23: =Dados!B23 -> 00:00:00 | C23: =Dados!C23 -> 0 | D23: 0 | E23: 0 | F23: 0
A24: =Dados!A24 -> 00:00:00 | B24: =Dados!B24 -> 00:00:00 | C24: =Dados!C24 -> 0 | D24: 0 | E24: 0 | F24: 0
A25: =Dados!A25 -> 00:00:00 | B25: =Dados!B25 -> 00:00:00 | C25: =Dados!C25 -> 0 | D25: 0 | E25: 0 | F25: 0
A26: =Dados!A26 -> 00:00:00 | B26: =Dados!B26 -> 00:00:00 | C26: =Dados!C26 -> 0 | D26: 0 | E26: 0 | F26: 0
A27: =Dados!A27 -> 00:00:00 | B27: =Dados!B27 -> 00:00:00 | C27: =Dados!C27 -> 0 | D27: 0 | E27: 0 | F27: 0
A28: =Dados!A28 -> 00:00:00 | B28: =Dados!B28 -> 00:00:00 | C28: =Dados!C28 -> 0 | D28: 0 | E28: 0 | F28: 0
A29: =Dados!A29 -> 00:00:00 | B29: =Dados!B29 -> 00:00:00 | C29: =Dados!C29 -> 0 | D29: 0 | E29: 0 | F29: 0
A30: =Dados!A30 -> 00:00:00 | B30: =Dados!B30 -> 00:00:00 | C30: =Dados!C30 -> 0 | D30: 0 | E30: 0 | F30: 0
A31: =Dados!A31 -> 00:00:00 | B31: =Dados!B31 -> 00:00:00 | C31: =Dados!C31 -> 0 | D31: 0 | E31: 0 | F31: 0
A32: =Dados!A32 -> 00:00:00 | B32: =Dados!B32 -> 00:00:00 | C32: =Dados!C32 -> 0 | D32: 0 | E32: =HOUR(B32) -> 0 | F32: =MINUTE(B32) -> 0
A33: =Dados!A33 -> 00:00:00 | B33: =Dados!B33 -> 00:00:00 | C33: =Dados!C33 -> 0 | D33: 0 | E33: 0 | F33: 0
A34: =Dados!A34 -> 00:00:00 | B34: =Dados!B34 -> 00:00:00 | C34: =Dados!C34 -> 0 | D34: 0 | E34: 0 | F34: 0
A35: =Dados!A35 -> 00:00:00 | B35: =Dados!B35 -> 00:00:00 | C35: =Dados!C35 -> 0 | D35: 0 | E35: 0 | F35: 0
A36: =Dados!A36 -> 00:00:00 | B36: =Dados!B36 -> 00:00:00 | C36: =Dados!C36 -> 0 | D36: 0 | E36: 0 | F36: 0
A37: =Dados!A37 -> 00:00:00 | B37: =Dados!B37 -> 00:00:00 | C37: =Dados!C37 -> 0 | D37: 0 | E37: 0 | F37: 0
A38: =Dados!A38 -> 00:00:00 | B38: =Dados!B38 -> 00:00:00 | C38: =Dados!C38 -> 0 | D38: 0 | E38: 0 | F38: 0
A39: =Dados!A39 -> 00:00:00 | B39: =Dados!B39 -> 00:00:00 | C39: =Dados!C39 -> 0 | D39: 0 | E39: 0 | F39: 0
A40: =Dados!A40 -> 00:00:00 | B40: =Dados!B40 -> 00:00:00 | C40: =Dados!C40 -> 0 | D40: 0 | E40: 0 | F40: 0
A41: =Dados!A41 -> 00:00:00 | B41: =Dados!B41 -> 00:00:00 | C41: =Dados!C41 -> 0 | D41: 0 | E41: 0 | F41: 0
A42: =Dados!A42 -> 00:00:00 | B42: =Dados!B42 -> 00:00:00 | C42: =Dados!C42 -> 0 | D42: 0 | E42: 0 | F42: 0
A43: =Dados!A43 -> 00:00:00 | B43: =Dados!B43 -> 00:00:00 | C43: =Dados!C43 -> 0 | D43: 0 | E43: 0 | F43: 0
A44: =Dados!A44 -> 00:00:00 | B44: =Dados!B44 -> 00:00:00 | C44: =Dados!C44 -> 0 | D44: 0 | E44: 0 | F44: 0
A45: =Dados!A45 -> 00:00:00 | B45: =Dados!B45 -> 00:00:00 | C45: =Dados!C45 -> 0 | D45: 0 | E45: 0 | F45: 0
A46: =Dados!A46 -> 00:00:00 | B46: =Dados!B46 -> 00:00:00 | C46: =Dados!C46 -> 0 | D46: 0 | E46: 0 | F46: 0
A47: =Dados!A47 -> 00:00:00 | B47: =Dados!B47 -> 00:00:00 | C47: =Dados!C47 -> 0 | D47: 0 | E47: 0 | F47: 0
A48: =Dados!A48 -> 00:00:00 | B48: =Dados!B48 -> 00:00:00 | C48: =Dados!C48 -> 0 | D48: 0 | E48: 0 | F48: 0
A49: =Dados!A49 -> 00:00:00 | B49: =Dados!B49 -> 00:00:00 | C49: =Dados!C49 -> 0 | D49: 0 | E49: 0 | F49: 0
A50: =Dados!A50 -> 00:00:00 | B50: =Dados!B50 -> 00:00:00 | C50: =Dados!C50 -> 0 | D50: 0 | E50: 0 | F50: 0
A51: =Dados!A51 -> 00:00:00 | B51: =Dados!B51 -> 00:00:00 | C51: =Dados!C51 -> 0 | D51: 0 | E51: 0 | F51: 0
A52: =Dados!A52 -> 00:00:00 | B52: =Dados!B52 -> 00:00:00 | C52: =Dados!C52 -> 0 | D52: 0 | E52: 0 | F52: 0
A53: =Dados!A53 -> 00:00:00 | B53: =Dados!B53 -> 00:00:00 | C53: =Dados!C53 -> 0 | D53: 0 | E53: =HOUR(B53) -> 0 | F53: =MINUTE(B53) -> 0
A54: =Dados!A54 -> 00:00:00 | B54: =Dados!B54 -> 00:00:00 | C54: =Dados!C54 -> 0 | D54: 0 | E54: 0 | F54: 0
A55: =Dados!A55 -> 00:00:00 | B55: =Dados!B55 -> 00:00:00 | C55: =Dados!C55 -> 0 | D55: 0 | E55: 0 | F55: 0
A56: =Dados!A56 -> 00:00:00 | B56: =Dados!B56 -> 00:00:00 | C56: =Dados!C56 -> 0 | D56: 0 | E56: 0 | F56: 0
A57: =Dados!A57 -> 00:00:00 | B57: =Dados!B57 -> 00:00:00 | C57: =Dados!C57 -> 0 | D57: 0 | E57: 0 | F57: 0
A58: =Dados!A58 -> 00:00:00 | B58: =Dados!B58 -> 00:00:00 | C58: =Dados!C58 -> 0 | D58: 0 | E58: 0 | F58: 0
A59: =Dados!A59 -> 00:00:00 | B59: =Dados!B59 -> 00:00:00 | C59: =Dados!C59 -> 0 | D59: 0 | E59: 0 | F59: 0
A60: =Dados!A60 -> 00:00:00 | B60: =Dados!B60 -> 00:00:00 | C60: =Dados!C60 -> 0 | D60: 0 | E60: 0 | F60: 0
A61: =Dados!A61 -> 00:00:00 | B61: =Dados!B61 -> 00:00:00 | C61: =Dados!C61 -> 0 | D61: 0 | E61: 0 | F61: 0
A62: =Dados!A62 -> 00:00:00 | B62: =Dados!B62 -> 00:00:00 | C62: =Dados!C62 -> 0 | D62: 0 | E62: 0 | F62: 0
A63: =Dados!A63 -> 00:00:00 | B63: =Dados!B63 -> 00:00:00 | C63: =Dados!C63 -> 0 | D63: 0 | E63: 0 | F63: 0
A64: =Dados!A64 -> 00:00:00 | B64: =Dados!B64 -> 00:00:00 | C64: =Dados!C64 -> 0 | D64: 0 | E64: 0 | F64: 0
A65: =Dados!A65 -> 00:00:00 | B65: =Dados!B65 -> 00:00:00 | C65: =Dados!C65 -> 0 | D65: 0 | E65: 0 | F65: 0
A66: =Dados!A66 -> 00:00:00 | B66: =Dados!B66 -> 00:00:00 | C66: =Dados!C66 -> 0 | D66: 0 | E66: 0 | F66: 0
A67: =Dados!A67 -> 00:00:00 | B67: =Dados!B67 -> 00:00:00 | C67: =Dados!C67 -> 0 | D67: =IF((0.0005*(C67^2)+0.0058*(C67)-0.055)<0,0,IF((0.0005*(C67^2)+0.0058*(C67)-0.055)>1,1,(0.0005*(C67^2)+0.0058*(C67)-0.055))) -> 0 | E67: 0 | F67: 0
A68: =Dados!A68 -> 00:00:00 | B68: =Dados!B68 -> 00:00:00 | C68: =Dados!C68 -> 0 | D68: 0 | E68: 0 | F68: 0
A69: =Dados!A69 -> 00:00:00 | B69: =Dados!B69 -> 00:00:00 | C69: =Dados!C69 -> 0 | D69: 0 | E69: 0 | F69: 0
A70: =Dados!A70 -> 00:00:00 | B70: =Dados!B70 -> 00:00:00 | C70: =Dados!C70 -> 0 | D70: 0 | E70: 0 | F70: 0
A71: =Dados!A71 -> 00:00:00 | B71: =Dados!B71 -> 00:00:00 | C71: =Dados!C71 -> 0 | D71: 0 | E71: 0 | F71: 0
A72: =Dados!A72 -> 00:00:00 | B72: =Dados!B72 -> 00:00:00 | C72: =Dados!C72 -> 0 | D72: 0 | E72: 0 | F72: 0
A73: =Dados!A73 -> 00:00:00 | B73: =Dados!B73 -> 00:00:00 | C73: =Dados!C73 -> 0 | D73: 0 | E73: 0 | F73: 0
A74: =Dados!A74 -> 00:00:00 | B74: =Dados!B74 -> 00:00:00 | C74: =Dados!C74 -> 0 | D74: 0 | E74: 0 | F74: 0
A75: =Dados!A75 -> 00:00:00 | B75: =Dados!B75 -> 00:00:00 | C75: =Dados!C75 -> 0 | D75: 0 | E75: 0 | F75: 0
A76: =Dados!A76 -> 00:00:00 | B76: =Dados!B76 -> 00:00:00 | C76: =Dados!C76 -> 0 | D76: 0 | E76: 0 | F76: 0
A77: =Dados!A77 -> 00:00:00 | B77: =Dados!B77 -> 00:00:00 | C77: =Dados!C77 -> 0 | D77: 0 | E77: 0 | F77: 0
A78: =Dados!A78 -> 00:00:00 | B78: =Dados!B78 -> 00:00:00 | C78: =Dados!C78 -> 0 | D78: 0 | E78: 0 | F78: 0
A79: =Dados!A79 -> 00:00:00 | B79: =Dados!B79 -> 00:00:00 | C79: =Dados!C79 -> 0 | D79: 0 | E79: 0 | F79: 0
A80: =Dados!A80 -> 00:00:00 | B80: =Dados!B80 -> 00:00:00 | C80: =Dados!C80 -> 0 | D80: 0 | E80: 0 | F80: 0
A81: =Dados!A81 -> 00:00:00 | B81: =Dados!B81 -> 00:00:00 | C81: =Dados!C81 -> 0 | D81: 0 | E81: 0 | F81: 0
A82: =Dados!A82 -> 00:00:00 | B82: =Dados!B82 -> 00:00:00 | C82: =Dados!C82 -> 0 | D82: 0 | E82: 0 | F82: 0
A83: =Dados!A83 -> 00:00:00 | B83: =Dados!B83 -> 00:00:00 | C83: =Dados!C83 -> 0 | D83: 0 | E83: 0 | F83: 0
A84: =Dados!A84 -> 00:00:00 | B84: =Dados!B84 -> 00:00:00 | C84: =Dados!C84 -> 0 | D84: 0 | E84: 0 | F84: 0
A85: =Dados!A85 -> 00:00:00 | B85: =Dados!B85 -> 00:00:00 | C85: =Dados!C85 -> 0 | D85: 0 | E85: 0 | F85: 0
A86: =Dados!A86 -> 00:00:00 | B86: =Dados!B86 -> 00:00:00 | C86: =Dados!C86 -> 0 | D86: 0 | E86: 0 | F86: 0
A87: =Dados!A87 -> 00:00:00 | B87: =Dados!B87 -> 00:00:00 | C87: =Dados!C87 -> 0 | D87: 0 | E87: 0 | F87: 0
A88: =Dados!A88 -> 00:00:00 | B88: =Dados!B88 -> 00:00:00 | C88: =Dados!C88 -> 0 | D88: 0 | E88: 0 | F88: 0
A89: =Dados!A89 -> 00:00:00 | B89: =Dados!B89 -> 00:00:00 | C89: =Dados!C89 -> 0 | D89: 0 | E89: 0 | F89: 0
A90: =Dados!A90 -> 00:00:00 | B90: =Dados!B90 -> 00:00:00 | C90: =Dados!C90 -> 0 | D90: 0 | E90: 0 | F90: 0
A91: =Dados!A91 -> 00:00:00 | B91: =Dados!B91 -> 00:00:00 | C91: =Dados!C91 -> 0 | D91: 0 | E91: 0 | F91: 0
A92: =Dados!A92 -> 00:00:00 | B92: =Dados!B92 -> 00:00:00 | C92: =Dados!C92 -> 0 | D92: 0 | E92: 0 | F92: 0
A93: =Dados!A93 -> 00:00:00 | B93: =Dados!B93 -> 00:00:00 | C93: =Dados!C93 -> 0 | D93: 0 | E93: 0 | F93: 0
A94: =Dados!A94 -> 00:00:00 | B94: =Dados!B94 -> 00:00:00 | C94: =Dados!C94 -> 0 | D94: 0 | E94: 0 | F94: 0
A95: =Dados!A95 -> 00:00:00 | B95: =Dados!B95 -> 00:00:00 | C95: =Dados!C95 -> 0 | D95: 0 | E95: 0 | F95: 0
A96: =Dados!A96 -> 00:00:00 | B96: =Dados!B96 -> 00:00:00 | C96: =Dados!C96 -> 0 | D96: 0 | E96: 0 | F96: 0
A97: =Dados!A97 -> 00:00:00 | B97: =Dados!B97 -> 00:00:00 | C97: =Dados!C97 -> 0 | D97: 0 | E97: 0 | F97: 0
A98: =Dados!A98 -> 00:00:00 | B98: =Dados!B98 -> 00:00:00 | C98: =Dados!C98 -> 0 | D98: 0 | E98: 0 | F98: 0
A99: =Dados!A99 -> 00:00:00 | B99: =Dados!B99 -> 00:00:00 | C99: =Dados!C99 -> 0 | D99: 0 | E99: 0 | F99: 0
A100: =Dados!A100 -> 00:00:00 | B100: =Dados!B100 -> 00:00:00 | C100: =Dados!C100 -> 0 | D100: 0 | E100: 0 | F100: 0
A101: =Dados!A101 -> 00:00:00 | B101: =Dados!B101 -> 00:00:00 | C101: =Dados!C101 -> 0 | D101: 0 | E101: 0 | F101: 0
A102: =Dados!A102 -> 00:00:00 | B102: =Dados!B102 -> 00:00:00 | C102: =Dados!C102 -> 0 | D102: 0 | E102: 0 | F102: 0
A103: =Dados!A103 -> 00:00:00 | B103: =Dados!B103 -> 00:00:00 | C103: =Dados!C103 -> 0 | D103: 0 | E103: 0 | F103: 0
A104: =Dados!A104 -> 00:00:00 | B104: =Dados!B104 -> 00:00:00 | C104: =Dados!C104 -> 0 | D104: 0 | E104: 0 | F104: 0
A105: =Dados!A105 -> 00:00:00 | B105: =Dados!B105 -> 00:00:00 | C105: =Dados!C105 -> 0 | D105: 0 | E105: 0 | F105: 0
A106: =Dados!A106 -> 00:00:00 | B106: =Dados!B106 -> 00:00:00 | C106: =Dados!C106 -> 0 | D106: 0 | E106: 0 | F106: 0
A107: =Dados!A107 -> 00:00:00 | B107: =Dados!B107 -> 00:00:00 | C107: =Dados!C107 -> 0 | D107: 0 | E107: 0 | F107: 0
A108: =Dados!A108 -> 00:00:00 | B108: =Dados!B108 -> 00:00:00 | C108: =Dados!C108 -> 0 | D108: 0 | E108: 0 | F108: 0
A109: =Dados!A109 -> 00:00:00 | B109: =Dados!B109 -> 00:00:00 | C109: =Dados!C109 -> 0 | D109: 0 | E109: 0 | F109: 0
A110: =Dados!A110 -> 00:00:00 | B110: =Dados!B110 -> 00:00:00 | C110: =Dados!C110 -> 0 | D110: 0 | E110: 0 | F110: 0
A111: =Dados!A111 -> 00:00:00 | B111: =Dados!B111 -> 00:00:00 | C111: =Dados!C111 -> 0 | D111: 0 | E111: 0 | F111: 0
A112: =Dados!A112 -> 00:00:00 | B112: =Dados!B112 -> 00:00:00 | C112: =Dados!C112 -> 0 | D112: 0 | E112: 0 | F112: 0
A113: =Dados!A113 -> 00:00:00 | B113: =Dados!B113 -> 00:00:00 | C113: =Dados!C113 -> 0 | D113: 0 | E113: 0 | F113: 0
A114: =Dados!A114 -> 00:00:00 | B114: =Dados!B114 -> 00:00:00 | C114: =Dados!C114 -> 0 | D114: 0 | E114: 0 | F114: 0
A115: =Dados!A115 -> 00:00:00 | B115: =Dados!B115 -> 00:00:00 | C115: =Dados!C115 -> 0 | D115: 0 | E115: 0 | F115: 0
A116: =Dados!A116 -> 00:00:00 | B116: =Dados!B116 -> 00:00:00 | C116: =Dados!C116 -> 0 | D116: 0 | E116: 0 | F116: 0
A117: =Dados!A117 -> 00:00:00 | B117: =Dados!B117 -> 00:00:00 | C117: =Dados!C117 -> 0 | D117: 0 | E117: =HOUR(B117) -> 0 | F117: =MINUTE(B117) -> 0
A118: =Dados!A118 -> 00:00:00 | B118: =Dados!B118 -> 00:00:00 | C118: =Dados!C118 -> 0 | D118: 0 | E118: 0 | F118: 0
A119: =Dados!A119 -> 00:00:00 | B119: =Dados!B119 -> 00:00:00 | C119: =Dados!C119 -> 0 | D119: 0 | E119: 0 | F119: 0
A120: =Dados!A120 -> 00:00:00 | B120: =Dados!B120 -> 00:00:00 | C120: =Dados!C120 -> 0 | D120: 0 | E120: 0 | F120: 0
A121: =Dados!A121 -> 00:00:00 | B121: =Dados!B121 -> 00:00:00 | C121: =Dados!C121 -> 0 | D121: 0 | E121: 0 | F121: 0
A122: =Dados!A122 -> 00:00:00 | B122: =Dados!B122 -> 00:00:00 | C122: =Dados!C122 -> 0 | D122: 0 | E122: 0 | F122: 0
A123: =Dados!A123 -> 00:00:00 | B123: =Dados!B123 -> 00:00:00 | C123: =Dados!C123 -> 0 | D123: 0 | E123: 0 | F123: 0
A124: =Dados!A124 -> 00:00:00 | B124: =Dados!B124 -> 00:00:00 | C124: =Dados!C124 -> 0 | D124: 0 | E124: 0 | F124: 0
A125: =Dados!A125 -> 00:00:00 | B125: =Dados!B125 -> 00:00:00 | C125: =Dados!C125 -> 0 | D125: 0 | E125: 0 | F125: 0
A126: =Dados!A126 -> 00:00:00 | B126: =Dados!B126 -> 00:00:00 | C126: =Dados!C126 -> 0 | D126: 0 | E126: 0 | F126: 0
A127: =Dados!A127 -> 00:00:00 | B127: =Dados!B127 -> 00:00:00 | C127: =Dados!C127 -> 0 | D127: 0 | E127: 0 | F127: 0
A128: =Dados!A128 -> 00:00:00 | B128: =Dados!B128 -> 00:00:00 | C128: =Dados!C128 -> 0 | D128: 0 | E128: 0 | F128: 0
A129: =Dados!A129 -> 00:00:00 | B129: =Dados!B129 -> 00:00:00 | C129: =Dados!C129 -> 0 | D129: 0 | E129: 0 | F129: 0
A130: =Dados!A130 -> 00:00:00 | B130: =Dados!B130 -> 00:00:00 | C130: =Dados!C130 -> 0 | D130: 0 | E130: 0 | F130: 0
A131: =Dados!A131 -> 00:00:00 | B131: =Dados!B131 -> 00:00:00 | C131: =Dados!C131 -> 0 | D131: =IF((0.0005*(C131^2)+0.0058*(C131)-0.055)<0,0,IF((0.0005*(C131^2)+0.0058*(C131)-0.055)>1,1,(0.0005*(C131^2)+0.0058*(C131)-0.055))) -> 0 | E131: 0 | F131: 0
A132: =Dados!A132 -> 00:00:00 | B132: =Dados!B132 -> 00:00:00 | C132: =Dados!C132 -> 0 | D132: 0 | E132: 0 | F132: 0
A133: =Dados!A133 -> 00:00:00 | B133: =Dados!B133 -> 00:00:00 | C133: =Dados!C133 -> 0 | D133: 0 | E133: 0 | F133: 0
A134: =Dados!A134 -> 00:00:00 | B134: =Dados!B134 -> 00:00:00 | C134: =Dados!C134 -> 0 | D134: 0 | E134: 0 | F134: 0
A135: =Dados!A135 -> 00:00:00 | B135: =Dados!B135 -> 00:00:00 | C135: =Dados!C135 -> 0 | D135: 0 | E135: 0 | F135: 0
A136: =Dados!A136 -> 00:00:00 | B136: =Dados!B136 -> 00:00:00 | C136: =Dados!C136 -> 0 | D136: 0 | E136: 0 | F136: 0
A137: =Dados!A137 -> 00:00:00 | B137: =Dados!B137 -> 00:00:00 | C137: =Dados!C137 -> 0 | D137: 0 | E137: 0 | F137: 0
A138: =Dados!A138 -> 00:00:00 | B138: =Dados!B138 -> 00:00:00 | C138: =Dados!C138 -> 0 | D138: 0 | E138: 0 | F138: 0
A139: =Dados!A139 -> 00:00:00 | B139: =Dados!B139 -> 00:00:00 | C139: =Dados!C139 -> 0 | D139: 0 | E139: 0 | F139: 0
A140: =Dados!A140 -> 00:00:00 | B140: =Dados!B140 -> 00:00:00 | C140: =Dados!C140 -> 0 | D140: 0 | E140: 0 | F140: 0
A141: =Dados!A141 -> 00:00:00 | B141: =Dados!B141 -> 00:00:00 | C141: =Dados!C141 -> 0 | D141: 0 | E141: 0 | F141: 0
A142: =Dados!A142 -> 00:00:00 | B142: =Dados!B142 -> 00:00:00 | C142: =Dados!C142 -> 0 | D142: 0 | E142: 0 | F142: 0
A143: =Dados!A143 -> 00:00:00 | B143: =Dados!B143 -> 00:00:00 | C143: =Dados!C143 -> 0 | D143: 0 | E143: 0 | F143: 0
A144: =Dados!A144 -> 00:00:00 | B144: =Dados!B144 -> 00:00:00 | C144: =Dados!C144 -> 0 | D144: 0 | E144: 0 | F144: 0
A145: =Dados!A145 -> 00:00:00 | B145: =Dados!B145 -> 00:00:00 | C145: =Dados!C145 -> 0 | D145: 0 | E145: 0 | F145: 0
A146: =Dados!A146 -> 00:00:00 | B146: =Dados!B146 -> 00:00:00 | C146: =Dados!C146 -> 0 | D146: 0 | E146: 0 | F146: 0
A147: =Dados!A147 -> 00:00:00 | B147: =Dados!B147 -> 00:00:00 | C147: =Dados!C147 -> 0 | D147: 0 | E147: 0 | F147: 0
A148: =Dados!A148 -> 00:00:00 | B148: =Dados!B148 -> 00:00:00 | C148: =Dados!C148 -> 0 | D148: 0 | E148: 0 | F148: 0
A149: =Dados!A149 -> 00:00:00 | B149: =Dados!B149 -> 00:00:00 | C149: =Dados!C149 -> 0 | D149: 0 | E149: 0 | F149: 0
A150: =Dados!A150 -> 00:00:00 | B150: =Dados!B150 -> 00:00:00 | C150: =Dados!C150 -> 0 | D150: 0 | E150: 0 | F150: 0
A151: =Dados!A151 -> 00:00:00 | B151: =Dados!B151 -> 00:00:00 | C151: =Dados!C151 -> 0 | D151: 0 | E151: 0 | F151: 0
A152: =Dados!A152 -> 00:00:00 | B152: =Dados!B152 -> 00:00:00 | C152: =Dados!C152 -> 0 | D152: 0 | E152: 0 | F152: 0
A153: =Dados!A153 -> 00:00:00 | B153: =Dados!B153 -> 00:00:00 | C153: =Dados!C153 -> 0 | D153: 0 | E153: 0 | F153: 0
A154: =Dados!A154 -> 00:00:00 | B154: =Dados!B154 -> 00:00:00 | C154: =Dados!C154 -> 0 | D154: 0 | E154: 0 | F154: 0
A155: =Dados!A155 -> 00:00:00 | B155: =Dados!B155 -> 00:00:00 | C155: =Dados!C155 -> 0 | D155: 0 | E155: 0 | F155: 0
A156: =Dados!A156 -> 00:00:00 | B156: =Dados!B156 -> 00:00:00 | C156: =Dados!C156 -> 0 | D156: 0 | E156: 0 | F156: 0
A157: =Dados!A157 -> 00:00:00 | B157: =Dados!B157 -> 00:00:00 | C157: =Dados!C157 -> 0 | D157: 0 | E157: 0 | F157: 0
A158: =Dados!A158 -> 00:00:00 | B158: =Dados!B158 -> 00:00:00 | C158: =Dados!C158 -> 0 | D158: 0 | E158: 0 | F158: 0
A159: =Dados!A159 -> 00:00:00 | B159: =Dados!B159 -> 00:00:00 | C159: =Dados!C159 -> 0 | D159: 0 | E159: 0 | F159: 0
A160: =Dados!A160 -> 00:00:00 | B160: =Dados!B160 -> 00:00:00 | C160: =Dados!C160 -> 0 | D160: 0 | E160: 0 | F160: 0
A161: =Dados!A161 -> 00:00:00 | B161: =Dados!B161 -> 00:00:00 | C161: =Dados!C161 -> 0 | D161: 0 | E161: 0 | F161: 0
A162: =Dados!A162 -> 00:00:00 | B162: =Dados!B162 -> 00:00:00 | C162: =Dados!C162 -> 0 | D162: 0 | E162: 0 | F162: 0
A163: =Dados!A163 -> 00:00:00 | B163: =Dados!B163 -> 00:00:00 | C163: =Dados!C163 -> 0 | D163: 0 | E163: 0 | F163: 0
A164: =Dados!A164 -> 00:00:00 | B164: =Dados!B164 -> 00:00:00 | C164: =Dados!C164 -> 0 | D164: 0 | E164: 0 | F164: 0
A165: =Dados!A165 -> 00:00:00 | B165: =Dados!B165 -> 00:00:00 | C165: =Dados!C165 -> 0 | D165: 0 | E165: 0 | F165: 0
A166: =Dados!A166 -> 00:00:00 | B166: =Dados!B166 -> 00:00:00 | C166: =Dados!C166 -> 0 | D166: 0 | E166: 0 | F166: 0
A167: =Dados!A167 -> 00:00:00 | B167: =Dados!B167 -> 00:00:00 | C167: =Dados!C167 -> 0 | D167: 0 | E167: 0 | F167: 0
A168: =Dados!A168 -> 00:00:00 | B168: =Dados!B168 -> 00:00:00 | C168: =Dados!C168 -> 0 | D168: 0 | E168: 0 | F168: 0
A169: =Dados!A169 -> 00:00:00 | B169: =Dados!B169 -> 00:00:00 | C169: =Dados!C169 -> 0 | D169: 0 | E169: 0 | F169: 0
A170: =Dados!A170 -> 00:00:00 | B170: =Dados!B170 -> 00:00:00 | C170: =Dados!C170 -> 0 | D170: 0 | E170: 0 | F170: 0
A171: =Dados!A171 -> 00:00:00 | B171: =Dados!B171 -> 00:00:00 | C171: =Dados!C171 -> 0 | D171: 0 | E171: 0 | F171: 0
A172: =Dados!A172 -> 00:00:00 | B172: =Dados!B172 -> 00:00:00 | C172: =Dados!C172 -> 0 | D172: 0 | E172: 0 | F172: 0
A173: =Dados!A173 -> 00:00:00 | B173: =Dados!B173 -> 00:00:00 | C173: =Dados!C173 -> 0 | D173: 0 | E173: 0 | F173: 0
A174: =Dados!A174 -> 00:00:00 | B174: =Dados!B174 -> 00:00:00 | C174: =Dados!C174 -> 0 | D174: 0 | E174: 0 | F174: 0
A175: =Dados!A175 -> 00:00:00 | B175: =Dados!B175 -> 00:00:00 | C175: =Dados!C175 -> 0 | D175: 0 | E175: 0 | F175: 0
A176: =Dados!A176 -> 00:00:00 | B176: =Dados!B176 -> 00:00:00 | C176: =Dados!C176 -> 0 | D176: 0 | E176: 0 | F176: 0
A177: =Dados!A177 -> 00:00:00 | B177: =Dados!B177 -> 00:00:00 | C177: =Dados!C177 -> 0 | D177: 0 | E177: 0 | F177: 0
A178: =Dados!A178 -> 00:00:00 | B178: =Dados!B178 -> 00:00:00 | C178: =Dados!C178 -> 0 | D178: 0 | E178: 0 | F178: 0
A179: =Dados!A179 -> 00:00:00 | B179: =Dados!B179 -> 00:00:00 | C179: =Dados!C179 -> 0 | D179: 0 | E179: 0 | F179: 0
A180: =Dados!A180 -> 00:00:00 | B180: =Dados!B180 -> 00:00:00 | C180: =Dados!C180 -> 0 | D180: 0 | E180: 0 | F180: 0
A181: =Dados!A181 -> 00:00:00 | B181: =Dados!B181 -> 00:00:00 | C181: =Dados!C181 -> 0 | D181: 0 | E181: =HOUR(B181) -> 0 | F181: =MINUTE(B181) -> 0
A182: =Dados!A182 -> 00:00:00 | B182: =Dados!B182 -> 00:00:00 | C182: =Dados!C182 -> 0 | D182: 0 | E182: 0 | F182: 0
A183: =Dados!A183 -> 00:00:00 | B183: =Dados!B183 -> 00:00:00 | C183: =Dados!C183 -> 0 | D183: 0 | E183: 0 | F183: 0
A184: =Dados!A184 -> 00:00:00 | B184: =Dados!B184 -> 00:00:00 | C184: =Dados!C184 -> 0 | D184: 0 | E184: 0 | F184: 0
A185: =Dados!A185 -> 00:00:00 | B185: =Dados!B185 -> 00:00:00 | C185: =Dados!C185 -> 0 | D185: 0 | E185: 0 | F185: 0
A186: =Dados!A186 -> 00:00:00 | B186: =Dados!B186 -> 00:00:00 | C186: =Dados!C186 -> 0 | D186: 0 | E186: 0 | F186: 0
A187: =Dados!A187 -> 00:00:00 | B187: =Dados!B187 -> 00:00:00 | C187: =Dados!C187 -> 0 | D187: 0 | E187: 0 | F187: 0
A188: =Dados!A188 -> 00:00:00 | B188: =Dados!B188 -> 00:00:00 | C188: =Dados!C188 -> 0 | D188: 0 | E188: 0 | F188: 0
A189: =Dados!A189 -> 00:00:00 | B189: =Dados!B189 -> 00:00:00 | C189: =Dados!C189 -> 0 | D189: 0 | E189: 0 | F189: 0
A190: =Dados!A190 -> 00:00:00 | B190: =Dados!B190 -> 00:00:00 | C190: =Dados!C190 -> 0 | D190: 0 | E190: 0 | F190: 0
A191: =Dados!A191 -> 00:00:00 | B191: =Dados!B191 -> 00:00:00 | C191: =Dados!C191 -> 0 | D191: 0 | E191: 0 | F191: 0
A192: =Dados!A192 -> 00:00:00 | B192: =Dados!B192 -> 00:00:00 | C192: =Dados!C192 -> 0 | D192: 0 | E192: 0 | F192: 0
A193: =Dados!A193 -> 00:00:00 | B193: =Dados!B193 -> 00:00:00 | C193: =Dados!C193 -> 0 | D193: 0 | E193: 0 | F193: 0
A194: =Dados!A194 -> 00:00:00 | B194: =Dados!B194 -> 00:00:00 | C194: =Dados!C194 -> 0 | D194: 0 | E194: 0 | F194: 0
A195: =Dados!A195 -> 00:00:00 | B195: =Dados!B195 -> 00:00:00 | C195: =Dados!C195 -> 0 | D195: =IF((0.0005*(C195^2)+0.0058*(C195)-0.055)<0,0,IF((0.0005*(C195^2)+0.0058*(C195)-0.055)>1,1,(0.0005*(C195^2)+0.0058*(C195)-0.055))) -> 0 | E195: 0 | F195: 0
A196: =Dados!A196 -> 00:00:00 | B196: =Dados!B196 -> 00:00:00 | C196: =Dados!C196 -> 0 | D196: 0 | E196: 0 | F196: 0
A197: =Dados!A197 -> 00:00:00 | B197: =Dados!B197 -> 00:00:00 | C197: =Dados!C197 -> 0 | D197: 0 | E197: 0 | F197: 0
A198: =Dados!A198 -> 00:00:00 | B198: =Dados!B198 -> 00:00:00 | C198: =Dados!C198 -> 0 | D198: 0 | E198: 0 | F198: 0
A199: =Dados!A199 -> 00:00:00 | B199: =Dados!B199 -> 00:00:00 | C199: =Dados!C199 -> 0 | D199: 0 | E199: 0 | F199: 0
A200: =Dados!A200 -> 00:00:00 | B200: =Dados!B200 -> 00:00:00 | C200: =Dados!C200 -> 0 | D200: 0 | E200: 0 | F200: 0
... 556 more rows

Sheet PLXDAQ_new_Settings (hidden)
B3: Previous Port: | C3: 7 | E3: DO NOT CHANGE THIS LAYOUT OR THE MACRO WONT WORK ANYMORE !!!!
B4: Previous Baud: | C4: 9600
B5: Rst on Connect?: | C5: TRUE
B6: Custom Checkbox 1 | C6: TRUE
B7: Custom Checkbox 2 | C7: FALSE
B8: Custom Checkbox 3 | C8: FALSE
B9: Sheet name to use: | C9: Dados_2.11.2019
B10: Log Incoming to DDW: | C10: TRUE
B11: Log Outgoing to DDW: | C11: TRUE
B12: Log System to DDW: | C12: TRUE
B13: Add Timestamp to DDW: | C13: TRUE
B14: Custom Form Width: | C14: 535.2000122
B15: #EXPERT-CONFIG# Serial Device Read buffer: | C15: 1024
B16: #EXPERT-CONFIG# Serial Device Write buffer: | C16: 1024
B17: #EXPERT-CONFIG# Excel Read buffer size: | C17: 1024
B18: #EXPERT-CONFIG# Excel interim buffer size: | C18: 64
